Publisher Label,Publisher URI,"Supplier ID","Supplier","Invoice No.","Amount £","Purpose","Transaction Number","Payment Date","Organisational Unit","Cost Centre(T)","Internal Category Number"
"Wolverhampton City Council","http://opendatacommunities.org/id/metropolitan-district-council/wolverhampton","706870","Rnib","SIN086429","60.45","Equipment - Purchase","130225869","07/09/2018","Special Educational Needs","SEN Sensory Inclusion","R4000"
"Wolverhampton City Council","http://opendatacommunities.org/id/metropolitan-district-council/wolverhampton","706922","Roving Books Limited","FJ100744","24.97","Books","130229910","28/09/2018","Schools","Oak Meadow Primary School","R4309"
"Wolverhampton City Council","http://opendatacommunities.org/id/metropolitan-district-council/wolverhampton","706935","Royal Mail","3610697","614.40","Equipment - Purchase","130229453","26/09/2018","Bereavement Services","Coroners","R4000"
"Wolverhampton City Council","http://opendatacommunities.org/id/metropolitan-district-council/wolverhampton","706936","Royal Mail Group PLC","9057304462","1,296.05","Comms - Postage","190510385","26/09/2018","Public Service Reform","Electoral Registration","R4503"
"Wolverhampton City Council","http://opendatacommunities.org/id/metropolitan-district-council/wolverhampton","706936","Royal Mail Group PLC","9057102423","1,573.39","Comms - Postage","130229352","26/09/2018","ICTS","Document Centre - General","R4503"
"Wolverhampton City Council","http://opendatacommunities.org/id/metropolitan-district-council/wolverhampton","706936","Royal Mail Group PLC","9057348625","2,046.80","Comms - Postage","190510386","26/09/2018","Public Service Reform","Electoral Registration","R4503"
"Wolverhampton City Council","http://opendatacommunities.org/id/metropolitan-district-council/wolverhampton","706936","Royal Mail Group PLC","9057034393","2,045.77","Comms - Postage","130229171","26/09/2018","Revenues & Benefits","Revenues","R4503"
"Wolverhampton City Council","http://opendatacommunities.org/id/metropolitan-district-council/wolverhampton","706936","Royal Mail Group PLC","9057352948","21.00","Comms - Postage","190510387","26/09/2018","Public Service Reform","Local Government Elections","R4503"
"Wolverhampton City Council","http://opendatacommunities.org/id/metropolitan-district-council/wolverhampton","706936","Royal Mail Group PLC","9057256489","1,495.55","Comms - Postage","190502602","07/09/2018","Public Service Reform","Electoral Registration","R4503"
"Wolverhampton City Council","http://opendatacommunities.org/id/metropolitan-district-council/wolverhampton","706936","Royal Mail Group PLC","9057243871","1,661.66","Comms - Postage","130229170","28/09/2018","Revenues & Benefits","Revenues","R4503"
"Wolverhampton City Council","http://opendatacommunities.org/id/metropolitan-district-council/wolverhampton","706936","Royal Mail Group PLC","9056593656","1,876.47","Comms - Postage","130229351","26/09/2018","ICTS","Document Centre - General","R4503"
"Wolverhampton City Council","http://opendatacommunities.org/id/metropolitan-district-council/wolverhampton","706943","Royal Wolverhampton  Hospitals NHS Trust","0000220813","173,660.00","TPP - Public Health Contracts","130227445","26/09/2018","Starting and Developing Well","Sexual Health","R5060"
"Wolverhampton City Council","http://opendatacommunities.org/id/metropolitan-district-council/wolverhampton","706943","Royal Wolverhampton  Hospitals NHS Trust","0000219640","450,000.00","TPP - Public Health Contracts","130223607","19/09/2018","Starting and Developing Well","Health Visiting 0-5 Year Olds","R5060"
"Wolverhampton City Council","http://opendatacommunities.org/id/metropolitan-district-council/wolverhampton","706943","Royal Wolverhampton  Hospitals NHS Trust","0000220144","18,184.00","TPP - Public Health Contracts","130225001","19/09/2018","Healthy Ageing","LA Role in Health Protection","R5060"
"Wolverhampton City Council","http://opendatacommunities.org/id/metropolitan-district-council/wolverhampton","706943","Royal Wolverhampton  Hospitals NHS Trust","0000015584","-485,583.33","TPP - Public Health Contracts","130223603","19/09/2018","Starting and Developing Well","Health Visiting 0-5 Year Olds","R5060"
"Wolverhampton City Council","http://opendatacommunities.org/id/metropolitan-district-council/wolverhampton","706943","Royal Wolverhampton  Hospitals NHS Trust","0000220224","450,000.00","TPP - Public Health Contracts","130225005","19/09/2018","Starting and Developing Well","Health Visiting 0-5 Year Olds","R5060"
"Wolverhampton City Council","http://opendatacommunities.org/id/metropolitan-district-council/wolverhampton","706943","Royal Wolverhampton  Hospitals NHS Trust","0000219639","450,000.00","TPP - Public Health Contracts","130225000","19/09/2018","Starting and Developing Well","Health Visiting 0-5 Year Olds","R5060"
"Wolverhampton City Council","http://opendatacommunities.org/id/metropolitan-district-council/wolverhampton","706943","Royal Wolverhampton  Hospitals NHS Trust","0000220202","3,882.92","TPP - Payments to Local Authorities","130225004","19/09/2018","Adults Assessment & Care Management West","Hospital Team","R5100"
"Wolverhampton City Council","http://opendatacommunities.org/id/metropolitan-district-council/wolverhampton","706943","Royal Wolverhampton  Hospitals NHS Trust","0000015585","-485,583.00","TPP - Public Health Contracts","130223604","19/09/2018","Starting and Developing Well","Health Visiting 0-5 Year Olds","R5060"
"Wolverhampton City Council","http://opendatacommunities.org/id/metropolitan-district-council/wolverhampton","706943","Royal Wolverhampton  Hospitals NHS Trust","0000217422","485,583.00","TPP - Public Health Contracts","130216716","19/09/2018","Starting and Developing Well","Health Visiting 0-5 Year Olds","R5060"
"Wolverhampton City Council","http://opendatacommunities.org/id/metropolitan-district-council/wolverhampton","706943","Royal Wolverhampton  Hospitals NHS Trust","0000015492","-38,592.00","TPP - Public Health Contracts","130222551","19/09/2018","Starting and Developing Well","Sexual Health","R5060"
"Wolverhampton City Council","http://opendatacommunities.org/id/metropolitan-district-council/wolverhampton","706943","Royal Wolverhampton  Hospitals NHS Trust","0000216353","485,583.00","TPP - Public Health Contracts","130216715","19/09/2018","Starting and Developing Well","Health Visiting 0-5 Year Olds","R5060"
"Wolverhampton City Council","http://opendatacommunities.org/id/metropolitan-district-council/wolverhampton","706943","Royal Wolverhampton  Hospitals NHS Trust","0000015586","-486,834.00","TPP - Public Health Contracts","130228412","19/09/2018","Starting and Developing Well","Health Visiting 0-5 Year Olds","R5060"
"Wolverhampton City Council","http://opendatacommunities.org/id/metropolitan-district-council/wolverhampton","706943","Royal Wolverhampton  Hospitals NHS Trust","0000219638","450,000.00","TPP - Public Health Contracts","130224999","19/09/2018","Starting and Developing Well","Health Visiting 0-5 Year Olds","R5060"
"Wolverhampton City Council","http://opendatacommunities.org/id/metropolitan-district-council/wolverhampton","706943","Royal Wolverhampton  Hospitals NHS Trust","0000220867","39,635.58","TPP - Payments to Health Authorities","130227449","26/09/2018","Independent Living Service","Independent Living Service","R5101"
"Wolverhampton City Council","http://opendatacommunities.org/id/metropolitan-district-council/wolverhampton","706943","Royal Wolverhampton  Hospitals NHS Trust","0000015587","-486,000.00","TPP - Public Health Contracts","130223606","19/09/2018","Starting and Developing Well","Health Visiting 0-5 Year Olds","R5060"
"Wolverhampton City Council","http://opendatacommunities.org/id/metropolitan-district-council/wolverhampton","706943","Royal Wolverhampton  Hospitals NHS Trust","0000220201","2,517.17","TPP - Payments to Local Authorities","130225003","19/09/2018","Adults Assessment & Care Management West","Hospital Team","R5100"
"Wolverhampton City Council","http://opendatacommunities.org/id/metropolitan-district-council/wolverhampton","706943","Royal Wolverhampton  Hospitals NHS Trust","0000219641","450,000.00","TPP - Public Health Contracts","130224316","19/09/2018","Starting and Developing Well","Health Visiting 0-5 Year Olds","R5060"
"Wolverhampton City Council","http://opendatacommunities.org/id/metropolitan-district-council/wolverhampton","706943","Royal Wolverhampton  Hospitals NHS Trust","0000218511","486,834.00","TPP - Public Health Contracts","130218421","19/09/2018","Starting and Developing Well","Health Visiting 0-5 Year Olds","R5060"
"Wolverhampton City Council","http://opendatacommunities.org/id/metropolitan-district-council/wolverhampton","706943","Royal Wolverhampton  Hospitals NHS Trust","0000220788","18,184.00","TPP - Public Health Contracts","130227444","26/09/2018","Healthy Ageing","LA Role in Health Protection","R5060"
"Wolverhampton City Council","http://opendatacommunities.org/id/metropolitan-district-council/wolverhampton","706969","Ruth Turnbull","727","250.00","Services - Professional Fees","130227595","07/09/2018","Visitor Economy","Education And Access","R4400"
"Wolverhampton City Council","http://opendatacommunities.org/id/metropolitan-district-council/wolverhampton","706987","S B Waste Management & Recycling Limited","112913","1,646.36","TPP - Waste Disposal","130227439","05/09/2018","Highways Maintenance","Patching","R5003"
"Wolverhampton City Council","http://opendatacommunities.org/id/metropolitan-district-council/wolverhampton","706987","S B Waste Management & Recycling Limited","115879","806.10","TPP - Waste Disposal","130227731","26/09/2018","Independent Living Service","Independent Living Service","R5003"
"Wolverhampton City Council","http://opendatacommunities.org/id/metropolitan-district-council/wolverhampton","706987","S B Waste Management & Recycling Limited","115877","161.00","TPP - Waste Disposal","130227730","26/09/2018","Highways Maintenance","Patching","R5003"
"Wolverhampton City Council","http://opendatacommunities.org/id/metropolitan-district-council/wolverhampton","706987","S B Waste Management & Recycling Limited","112228","1,190.08","TPP - Waste Disposal","130227438","05/09/2018","Highways Maintenance","Patching","R5003"
"Wolverhampton City Council","http://opendatacommunities.org/id/metropolitan-district-council/wolverhampton","706987","S B Waste Management & Recycling Limited","115876","2,005.53","TPP - Waste Disposal","130227729","26/09/2018","Highways Maintenance","Patching","R5003"
"Wolverhampton City Council","http://opendatacommunities.org/id/metropolitan-district-council/wolverhampton","706987","S B Waste Management & Recycling Limited","109543","1,308.00","Waste Management","130227356","05/09/2018","Highways Maintenance","Patching","R2703"
"Wolverhampton City Council","http://opendatacommunities.org/id/metropolitan-district-council/wolverhampton","707023","S. & J. Pritchard Landscapes Limited","290","85.00","R&M - Departmental response (external)","130228861","26/09/2018","Environmental Maintenance","Parks - East Area Management","R2003"
"Wolverhampton City Council","http://opendatacommunities.org/id/metropolitan-district-council/wolverhampton","707023","S. & J. Pritchard Landscapes Limited","288","650.00","R&M - Departmental response (external)","130228332","19/09/2018","Environmental Maintenance","Parks - South West Area Management","R2003"
"Wolverhampton City Council","http://opendatacommunities.org/id/metropolitan-district-council/wolverhampton","707023","S. & J. Pritchard Landscapes Limited","284","325.00","R&M - Departmental response (external)","130227735","12/09/2018","Environmental Maintenance","Parks - East Area Management","R2003"
"Wolverhampton City Council","http://opendatacommunities.org/id/metropolitan-district-council/wolverhampton","707023","S. & J. Pritchard Landscapes Limited","277","930.00","R&M - Departmental response (external)","130226742","05/09/2018","Environmental Maintenance","Parks - East Area Management","R2003"
"Wolverhampton City Council","http://opendatacommunities.org/id/metropolitan-district-council/wolverhampton","707023","S. & J. Pritchard Landscapes Limited","289","85.00","R&M - Departmental response (external)","130228860","26/09/2018","Environmental Maintenance","Parks - East Area Management","R2003"
"Wolverhampton City Council","http://opendatacommunities.org/id/metropolitan-district-council/wolverhampton","707023","S. & J. Pritchard Landscapes Limited","285","265.00","R&M - Departmental response (external)","130227969","19/09/2018","Environmental Maintenance","Parks - East Area Management","R2003"
"Wolverhampton City Council","http://opendatacommunities.org/id/metropolitan-district-council/wolverhampton","707023","S. & J. Pritchard Landscapes Limited","280","1,650.00","R&M - Departmental response (external)","130227235","12/09/2018","Environmental Maintenance","Parks - East Area Management","R2003"
"Wolverhampton City Council","http://opendatacommunities.org/id/metropolitan-district-council/wolverhampton","707023","S. & J. Pritchard Landscapes Limited","281","165.00","R&M - Departmental response (external)","130227732","12/09/2018","Environmental Maintenance","Parks - East Area Management","R2003"
"Wolverhampton City Council","http://opendatacommunities.org/id/metropolitan-district-council/wolverhampton","707023","S. & J. Pritchard Landscapes Limited","291","45.00","R&M - Departmental response (external)","130228862","26/09/2018","Environmental Maintenance","Parks - East Area Management","R2003"
"Wolverhampton City Council","http://opendatacommunities.org/id/metropolitan-district-council/wolverhampton","707023","S. & J. Pritchard Landscapes Limited","278","85.00","R&M - Departmental response (external)","130226743","05/09/2018","Environmental Maintenance","Parks - East Area Management","R2003"
"Wolverhampton City Council","http://opendatacommunities.org/id/metropolitan-district-council/wolverhampton","707023","S. & J. Pritchard Landscapes Limited","287","125.00","R&M - Departmental response (external)","130228331","19/09/2018","Environmental Maintenance","Parks - East Area Management","R2003"
"Wolverhampton City Council","http://opendatacommunities.org/id/metropolitan-district-council/wolverhampton","707023","S. & J. Pritchard Landscapes Limited","283","485.00","R&M - Departmental response (external)","130227734","12/09/2018","Environmental Maintenance","Parks - East Area Management","R2003"
"Wolverhampton City Council","http://opendatacommunities.org/id/metropolitan-district-council/wolverhampton","707023","S. & J. Pritchard Landscapes Limited","286","625.00","R&M - Departmental response (external)","130227970","19/09/2018","Environmental Maintenance","Parks - East Area Management","R2003"
"Wolverhampton City Council","http://opendatacommunities.org/id/metropolitan-district-council/wolverhampton","707023","S. & J. Pritchard Landscapes Limited","279","65.00","R&M - Departmental response (external)","130226744","05/09/2018","Environmental Maintenance","Parks - East Area Management","R2003"
"Wolverhampton City Council","http://opendatacommunities.org/id/metropolitan-district-council/wolverhampton","707023","S. & J. Pritchard Landscapes Limited","282","625.00","R&M - Departmental planned (external)","130227733","12/09/2018","Environmental Maintenance","Parks / Open Spaces - Repairs & Maintenance","R2001"
"Wolverhampton City Council","http://opendatacommunities.org/id/metropolitan-district-council/wolverhampton","707035","S.S. Sidhu","0480","163.90","Books","130226690","12/09/2018","Local Economy","Reference Library","R4309"
"Wolverhampton City Council","http://opendatacommunities.org/id/metropolitan-district-council/wolverhampton","707035","S.S. Sidhu","0479","166.19","Books","130226689","12/09/2018","Local Economy","Reference Library","R4309"
"Wolverhampton City Council","http://opendatacommunities.org/id/metropolitan-district-council/wolverhampton","707035","S.S. Sidhu","0481","175.45","Books","130227841","19/09/2018","Local Economy","Reference Library","R4309"
"Wolverhampton City Council","http://opendatacommunities.org/id/metropolitan-district-council/wolverhampton","707035","S.S. Sidhu","0482","152.10","Books","130227842","26/09/2018","Local Economy","Reference Library","R4309"
"Wolverhampton City Council","http://opendatacommunities.org/id/metropolitan-district-council/wolverhampton","707085","Sandwell Mbc","196000655","40,236.00","Grant Payments","130228958","19/09/2018","Enterprise","AIM for the Black Country non shared costs","R4700"
"Wolverhampton City Council","http://opendatacommunities.org/id/metropolitan-district-council/wolverhampton","707086","Sandwell Mbc(Sandwell Business Syst)","120010449","35,692.23","TPP - Payments to Local Authorities","130227736","19/09/2018","Public Service Reform","Coroners Service","R5100"
"Wolverhampton City Council","http://opendatacommunities.org/id/metropolitan-district-council/wolverhampton","707121","Schneider Electric Limited","34731744","1,949.00","Equipment - R & M","130228476","19/09/2018","Operation & Maintenance of Existing Network","UTC Wolverhampton","R4003"
"Wolverhampton City Council","http://opendatacommunities.org/id/metropolitan-district-council/wolverhampton","707121","Schneider Electric Limited","98293463","18,354.00","R&M - Departmental planned (internal)","130225322","26/09/2018","Maintenance Programme","Civic Centre Repairs & Maintenance","R2000"
"Wolverhampton City Council","http://opendatacommunities.org/id/metropolitan-district-council/wolverhampton","707164","Scribes Plus Limited","9965","102.00","Materials","130226159","12/09/2018","Bereavement Services","Crematorium","R4007"
"Wolverhampton City Council","http://opendatacommunities.org/id/metropolitan-district-council/wolverhampton","707164","Scribes Plus Limited","9977","125.00","Materials","130226561","19/09/2018","Bereavement Services","Crematorium","R4007"
"Wolverhampton City Council","http://opendatacommunities.org/id/metropolitan-district-council/wolverhampton","707185","Security Plus Limited","685179","15.38","Services - Security","130222910","19/09/2018","Parking Services","On Street Parking","R4405"
"Wolverhampton City Council","http://opendatacommunities.org/id/metropolitan-district-council/wolverhampton","707185","Security Plus Limited","693976","160.82","Services - Security","130227971","26/09/2018","Housing Revenue Account","HRA General","R4405"
"Wolverhampton City Council","http://opendatacommunities.org/id/metropolitan-district-council/wolverhampton","707185","Security Plus Limited","674149","209.73","Services - Security","130216516","05/09/2018","Parking Services","On Street Parking","R4405"
"Wolverhampton City Council","http://opendatacommunities.org/id/metropolitan-district-council/wolverhampton","707185","Security Plus Limited","674149","629.18","Services - Security","130216516","05/09/2018","Parking Services","Car Parks Operational Staff","R4405"
"Wolverhampton City Council","http://opendatacommunities.org/id/metropolitan-district-council/wolverhampton","707185","Security Plus Limited","673329","47.30","Services - Security","130228576","19/09/2018","Housing Revenue Account","HRA General","R4405"
"Wolverhampton City Council","http://opendatacommunities.org/id/metropolitan-district-council/wolverhampton","707185","Security Plus Limited","693978","18.92","Services - Security","130227973","26/09/2018","Leisure Services","Aldersley Leisure Village","R4405"
"Wolverhampton City Council","http://opendatacommunities.org/id/metropolitan-district-council/wolverhampton","707185","Security Plus Limited","694523","211.56","Services - Security","130228170","26/09/2018","Parking Services","On Street Parking","R4405"
"Wolverhampton City Council","http://opendatacommunities.org/id/metropolitan-district-council/wolverhampton","707185","Security Plus Limited","694523","634.69","Services - Security","130228170","26/09/2018","Parking Services","Car Parks Operational Staff","R4405"
"Wolverhampton City Council","http://opendatacommunities.org/id/metropolitan-district-council/wolverhampton","707185","Security Plus Limited","685101","196.72","Services - Security","130222733","05/09/2018","Parking Services","On Street Parking","R4405"
"Wolverhampton City Council","http://opendatacommunities.org/id/metropolitan-district-council/wolverhampton","707185","Security Plus Limited","685101","590.15","Services - Security","130222733","05/09/2018","Parking Services","Car Parks Operational Staff","R4405"
"Wolverhampton City Council","http://opendatacommunities.org/id/metropolitan-district-council/wolverhampton","707185","Security Plus Limited","692861","2,323.20","Services - Security","130229090","26/09/2018","The Hub","Cash in Transit (Operational Finance)","R4405"
"Wolverhampton City Council","http://opendatacommunities.org/id/metropolitan-district-council/wolverhampton","707185","Security Plus Limited","693977","28.38","Services - Security","130227972","26/09/2018","Visitor Economy","Bantock - Tea Rooms","R4405"
"Wolverhampton City Council","http://opendatacommunities.org/id/metropolitan-district-council/wolverhampton","707185","Security Plus Limited","668621","169.18","Services - Security","130214460","05/09/2018","Parking Services","Car Parks Operational Staff","R4405"
"Wolverhampton City Council","http://opendatacommunities.org/id/metropolitan-district-council/wolverhampton","707185","Security Plus Limited","687558","1,594.23","Services - Security","130224455","19/09/2018","Parking Services","On Street Parking","R4405"
"Wolverhampton City Council","http://opendatacommunities.org/id/metropolitan-district-council/wolverhampton","707185","Security Plus Limited","687558","4,782.71","Services - Security","130224455","19/09/2018","Parking Services","Car Parks Operational Staff","R4405"
"Wolverhampton City Council","http://opendatacommunities.org/id/metropolitan-district-council/wolverhampton","707185","Security Plus Limited","692863","20.00","Services - Security","130227357","26/09/2018","The Hub","Banking","R4405"
"Wolverhampton City Council","http://opendatacommunities.org/id/metropolitan-district-council/wolverhampton","707185","Security Plus Limited","693979","28.38","Services - Security","130227974","26/09/2018","Leisure Services","Bert Williams Leisure Centre","R4405"
"Wolverhampton City Council","http://opendatacommunities.org/id/metropolitan-district-council/wolverhampton","707185","Security Plus Limited","696127","92.28","Services - Security","130228577","19/09/2018","Parking Services","On Street Parking","R4405"
"Wolverhampton City Council","http://opendatacommunities.org/id/metropolitan-district-council/wolverhampton","707191","Seesaws Day Nursery","NEF Autumn 2018 INST 1 Penn","22,123.75","TPP - Private Nursery Education Funding","190508157","19/09/2018","Early Years","Early Years Universal Entitlement for 3 and 4 Year Olds","R5035"
"Wolverhampton City Council","http://opendatacommunities.org/id/metropolitan-district-council/wolverhampton","707191","Seesaws Day Nursery","TFT Autumn 2018 Inst 1 Merridale","5,281.92","TPP - Private Nursery Education Funding","190508169","19/09/2018","Early Years","Early Years Entitlement Funding for Disadvantaged 2 Year Olds","R5035"
"Wolverhampton City Council","http://opendatacommunities.org/id/metropolitan-district-council/wolverhampton","707191","Seesaws Day Nursery","NEF Autumn 2018 INST 1 Merridale","13,078.50","TPP - Private Nursery Education Funding","190508158","19/09/2018","Early Years","Early Years Universal Entitlement for 3 and 4 Year Olds","R5035"
"Wolverhampton City Council","http://opendatacommunities.org/id/metropolitan-district-council/wolverhampton","707191","Seesaws Day Nursery","TFT Autumn 2018 Inst 1 Penn","11,224.08","TPP - Private Nursery Education Funding","190508168","19/09/2018","Early Years","Early Years Entitlement Funding for Disadvantaged 2 Year Olds","R5035"
"Wolverhampton City Council","http://opendatacommunities.org/id/metropolitan-district-council/wolverhampton","707196","Select Alarm Systems Limited","89072","3,997.50","Fixtures and Fittings - R&M","130228007","19/09/2018","Adult Education","Alan Garner Centre Building","R2502"
"Wolverhampton City Council","http://opendatacommunities.org/id/metropolitan-district-council/wolverhampton","707196","Select Alarm Systems Limited","89073","2,240.00","Fixtures and Fittings - R&M","130228008","19/09/2018","Adult Education","The Maltings","R2502"
"Wolverhampton City Council","http://opendatacommunities.org/id/metropolitan-district-council/wolverhampton","707196","Select Alarm Systems Limited","89081","250.00","Fixtures and Fittings - R&M","130228012","26/09/2018","Maintenance Programme","Centralised R&M","R2502"
"Wolverhampton City Council","http://opendatacommunities.org/id/metropolitan-district-council/wolverhampton","707196","Select Alarm Systems Limited","88817","103.00","Fixtures and Fittings - R&M","130227992","26/09/2018","Maintenance Programme","Centralised R&M","R2502"
"Wolverhampton City Council","http://opendatacommunities.org/id/metropolitan-district-council/wolverhampton","707196","Select Alarm Systems Limited","89078","343.00","Fixtures and Fittings - R&M","130228009","26/09/2018","Maintenance Programme","Centralised R&M","R2502"
"Wolverhampton City Council","http://opendatacommunities.org/id/metropolitan-district-council/wolverhampton","707196","Select Alarm Systems Limited","88981","103.00","Fixtures and Fittings - R&M","130228001","26/09/2018","Maintenance Programme","Centralised R&M","R2502"
"Wolverhampton City Council","http://opendatacommunities.org/id/metropolitan-district-council/wolverhampton","707196","Select Alarm Systems Limited","89230","395.00","Fixtures and Fittings - R&M","130228018","14/09/2018","Maintenance Programme","Centralised R&M","R2502"
"Wolverhampton City Council","http://opendatacommunities.org/id/metropolitan-district-council/wolverhampton","707196","Select Alarm Systems Limited","88812","103.00","Fixtures and Fittings - R&M","130227991","14/09/2018","Maintenance Programme","Centralised R&M","R2502"
"Wolverhampton City Council","http://opendatacommunities.org/id/metropolitan-district-council/wolverhampton","707196","Select Alarm Systems Limited","88920","93.00","Fixtures and Fittings - R&M","130227998","14/09/2018","Maintenance Programme","Centralised R&M","R2502"
"Wolverhampton City Council","http://opendatacommunities.org/id/metropolitan-district-council/wolverhampton","707196","Select Alarm Systems Limited","89211","128.00","Fixtures and Fittings - R&M","130228016","14/09/2018","Maintenance Programme","Centralised R&M","R2502"
"Wolverhampton City Council","http://opendatacommunities.org/id/metropolitan-district-council/wolverhampton","707196","Select Alarm Systems Limited","88434","103.00","Services - Security","130227978","14/09/2018","Maintenance Programme","Centralised R&M","R4405"
"Wolverhampton City Council","http://opendatacommunities.org/id/metropolitan-district-council/wolverhampton","707196","Select Alarm Systems Limited","88710","103.00","Fixtures and Fittings - R&M","130227987","26/09/2018","Maintenance Programme","Centralised R&M","R2502"
"Wolverhampton City Council","http://opendatacommunities.org/id/metropolitan-district-council/wolverhampton","707196","Select Alarm Systems Limited","88836","103.00","Fixtures and Fittings - R&M","130227993","26/09/2018","Maintenance Programme","Centralised R&M","R2502"
"Wolverhampton City Council","http://opendatacommunities.org/id/metropolitan-district-council/wolverhampton","707196","Select Alarm Systems Limited","89163","103.00","Fixtures and Fittings - R&M","130228013","26/09/2018","Maintenance Programme","Centralised R&M","R2502"
"Wolverhampton City Council","http://opendatacommunities.org/id/metropolitan-district-council/wolverhampton","707196","Select Alarm Systems Limited","89071","495.00","Fixtures and Fittings - R&M","130228006","26/09/2018","Maintenance Programme","Centralised R&M","R2502"
"Wolverhampton City Council","http://opendatacommunities.org/id/metropolitan-district-council/wolverhampton","707196","Select Alarm Systems Limited","89079","8,095.00","Fixtures and Fittings - R&M","130228010","19/09/2018","Adult Education","Foyer Building","R2502"
"Wolverhampton City Council","http://opendatacommunities.org/id/metropolitan-district-council/wolverhampton","707196","Select Alarm Systems Limited","88810","148.00","Fixtures and Fittings - R&M","130227990","14/09/2018","Maintenance Programme","Centralised R&M","R2502"
"Wolverhampton City Council","http://opendatacommunities.org/id/metropolitan-district-council/wolverhampton","707196","Select Alarm Systems Limited","88960","93.00","Fixtures and Fittings - R&M","130227999","14/09/2018","Maintenance Programme","Centralised R&M","R2502"
"Wolverhampton City Council","http://opendatacommunities.org/id/metropolitan-district-council/wolverhampton","707196","Select Alarm Systems Limited","88994","410.00","Fixtures and Fittings - R&M","130228002","14/09/2018","Maintenance Programme","Centralised R&M","R2502"
"Wolverhampton City Council","http://opendatacommunities.org/id/metropolitan-district-council/wolverhampton","707196","Select Alarm Systems Limited","88436","433.00","R&M - Departmental planned (external)","130227979","14/09/2018","Maintenance Programme","Centralised R&M","R2001"
"Wolverhampton City Council","http://opendatacommunities.org/id/metropolitan-district-council/wolverhampton","707196","Select Alarm Systems Limited","88704","103.00","Fixtures and Fittings - R&M","130227983","14/09/2018","Maintenance Programme","Centralised R&M","R2502"
"Wolverhampton City Council","http://opendatacommunities.org/id/metropolitan-district-council/wolverhampton","707196","Select Alarm Systems Limited","88713","103.00","Fixtures and Fittings - R&M","130227988","26/09/2018","Maintenance Programme","Centralised R&M","R2502"
"Wolverhampton City Council","http://opendatacommunities.org/id/metropolitan-district-council/wolverhampton","707196","Select Alarm Systems Limited","88686","163.00","Fixtures and Fittings - R&M","130227981","26/09/2018","Maintenance Programme","Centralised R&M","R2502"
"Wolverhampton City Council","http://opendatacommunities.org/id/metropolitan-district-council/wolverhampton","707196","Select Alarm Systems Limited","88902","103.00","Fixtures and Fittings - R&M","130227995","26/09/2018","Maintenance Programme","Centralised R&M","R2502"
"Wolverhampton City Council","http://opendatacommunities.org/id/metropolitan-district-council/wolverhampton","707196","Select Alarm Systems Limited","89175","103.00","Fixtures and Fittings - R&M","130228014","26/09/2018","Maintenance Programme","Centralised R&M","R2502"
"Wolverhampton City Council","http://opendatacommunities.org/id/metropolitan-district-council/wolverhampton","707196","Select Alarm Systems Limited","89080","395.00","Construction and Conversion","130228011","19/09/2018","-","Co-Location Programme","C1100"
"Wolverhampton City Council","http://opendatacommunities.org/id/metropolitan-district-council/wolverhampton","707196","Select Alarm Systems Limited","88696","103.00","Services - Security","130227982","12/09/2018","Maintenance Programme","Centralised R&M","R4405"
"Wolverhampton City Council","http://opendatacommunities.org/id/metropolitan-district-council/wolverhampton","707196","Select Alarm Systems Limited","89008","220.00","Fixtures and Fittings - R&M","130228004","14/09/2018","Maintenance Programme","Centralised R&M","R2502"
"Wolverhampton City Council","http://opendatacommunities.org/id/metropolitan-district-council/wolverhampton","707196","Select Alarm Systems Limited","89216","93.00","Fixtures and Fittings - R&M","130228017","14/09/2018","Maintenance Programme","Centralised R&M","R2502"
"Wolverhampton City Council","http://opendatacommunities.org/id/metropolitan-district-council/wolverhampton","707196","Select Alarm Systems Limited","88995","440.00","Fixtures and Fittings - R&M","130228003","14/09/2018","Maintenance Programme","Centralised R&M","R2502"
"Wolverhampton City Council","http://opendatacommunities.org/id/metropolitan-district-council/wolverhampton","707196","Select Alarm Systems Limited","88432","295.00","Construction and Conversion","130227977","14/09/2018","-","Co-Location Programme","C1100"
"Wolverhampton City Council","http://opendatacommunities.org/id/metropolitan-district-council/wolverhampton","707196","Select Alarm Systems Limited","88705","103.00","Fixtures and Fittings - R&M","130227984","14/09/2018","Maintenance Programme","Centralised R&M","R2502"
"Wolverhampton City Council","http://opendatacommunities.org/id/metropolitan-district-council/wolverhampton","707196","Select Alarm Systems Limited","88433","103.00","Services - Security","130228700","19/09/2018","Maintenance Programme","Centralised R&M","R4405"
"Wolverhampton City Council","http://opendatacommunities.org/id/metropolitan-district-council/wolverhampton","707196","Select Alarm Systems Limited","88706","138.00","Fixtures and Fittings - R&M","130227985","26/09/2018","Maintenance Programme","Centralised R&M","R2502"
"Wolverhampton City Council","http://opendatacommunities.org/id/metropolitan-district-council/wolverhampton","707196","Select Alarm Systems Limited","88803","103.00","Fixtures and Fittings - R&M","130227989","26/09/2018","Maintenance Programme","Centralised R&M","R2502"
"Wolverhampton City Council","http://opendatacommunities.org/id/metropolitan-district-council/wolverhampton","707196","Select Alarm Systems Limited","88880","168.00","Fixtures and Fittings - R&M","130227994","26/09/2018","Maintenance Programme","Centralised R&M","R2502"
"Wolverhampton City Council","http://opendatacommunities.org/id/metropolitan-district-council/wolverhampton","707196","Select Alarm Systems Limited","88438","103.00","Fixtures and Fittings - R&M","130227980","26/09/2018","Maintenance Programme","Centralised R&M","R2502"
"Wolverhampton City Council","http://opendatacommunities.org/id/metropolitan-district-council/wolverhampton","707196","Select Alarm Systems Limited","88903","103.00","Fixtures and Fittings - R&M","130227996","26/09/2018","Maintenance Programme","Centralised R&M","R2502"
"Wolverhampton City Council","http://opendatacommunities.org/id/metropolitan-district-council/wolverhampton","707196","Select Alarm Systems Limited","88961","93.00","Fixtures and Fittings - R&M","130228000","28/09/2018","Maintenance Programme","Centralised R&M","R2502"
"Wolverhampton City Council","http://opendatacommunities.org/id/metropolitan-district-council/wolverhampton","707196","Select Alarm Systems Limited","88709","103.00","Fixtures and Fittings - R&M","130227986","14/09/2018","Maintenance Programme","Centralised R&M","R2502"
"Wolverhampton City Council","http://opendatacommunities.org/id/metropolitan-district-council/wolverhampton","707196","Select Alarm Systems Limited","88249","360.00","Fixtures and Fittings - R&M","130227976","14/09/2018","Maintenance Programme","Centralised R&M","R2502"
"Wolverhampton City Council","http://opendatacommunities.org/id/metropolitan-district-council/wolverhampton","707196","Select Alarm Systems Limited","88919","93.00","Fixtures and Fittings - R&M","130227997","14/09/2018","Maintenance Programme","Centralised R&M","R2502"
"Wolverhampton City Council","http://opendatacommunities.org/id/metropolitan-district-council/wolverhampton","707196","Select Alarm Systems Limited","89210","128.00","Fixtures and Fittings - R&M","130228015","14/09/2018","Maintenance Programme","Centralised R&M","R2502"
"Wolverhampton City Council","http://opendatacommunities.org/id/metropolitan-district-council/wolverhampton","707196","Select Alarm Systems Limited","89011","440.00","Fixtures and Fittings - R&M","130228005","14/09/2018","Maintenance Programme","Centralised R&M","R2502"
"Wolverhampton City Council","http://opendatacommunities.org/id/metropolitan-district-council/wolverhampton","707213","Sellick Partnership Group Limited","INV240360","633.46","Agency Staff","130226451","12/09/2018","Legal Services","Legal Services","R1100"
"Wolverhampton City Council","http://opendatacommunities.org/id/metropolitan-district-council/wolverhampton","707213","Sellick Partnership Group Limited","INV243158","614.08","Agency Staff","130228870","26/09/2018","Legal Services","Legal Services","R1100"
"Wolverhampton City Council","http://opendatacommunities.org/id/metropolitan-district-council/wolverhampton","707213","Sellick Partnership Group Limited","INV240091","1,760.00","Agency Staff","130226371","12/09/2018","Legal Services","Legal Services","R1100"
"Wolverhampton City Council","http://opendatacommunities.org/id/metropolitan-district-council/wolverhampton","707213","Sellick Partnership Group Limited","INV240359","756.96","Agency Staff","130226450","12/09/2018","Legal Services","Legal Services","R1100"
"Wolverhampton City Council","http://opendatacommunities.org/id/metropolitan-district-council/wolverhampton","707213","Sellick Partnership Group Limited","INV243073","665.00","Agency Staff","130228868","26/09/2018","Legal Services","Legal Services","R1100"
"Wolverhampton City Council","http://opendatacommunities.org/id/metropolitan-district-council/wolverhampton","707213","Sellick Partnership Group Limited","INV240356","829.54","Agency Staff","130226447","12/09/2018","Legal Services","Legal Services","R1100"
"Wolverhampton City Council","http://opendatacommunities.org/id/metropolitan-district-council/wolverhampton","707213","Sellick Partnership Group Limited","INV240357","304.38","Agency Staff","130226448","12/09/2018","Legal Services","Legal Services","R1100"
"Wolverhampton City Council","http://opendatacommunities.org/id/metropolitan-district-council/wolverhampton","707213","Sellick Partnership Group Limited","INV241291","1,518.00","Agency Staff","130227236","12/09/2018","Legal Services","Legal Services","R1100"
"Wolverhampton City Council","http://opendatacommunities.org/id/metropolitan-district-council/wolverhampton","707213","Sellick Partnership Group Limited","INV240358","627.00","Agency Staff","130226449","12/09/2018","Legal Services","Legal Services","R1100"
"Wolverhampton City Council","http://opendatacommunities.org/id/metropolitan-district-council/wolverhampton","707213","Sellick Partnership Group Limited","INV243072","446.50","Agency Staff","130228867","26/09/2018","Legal Services","Legal Services","R1100"
"Wolverhampton City Council","http://opendatacommunities.org/id/metropolitan-district-council/wolverhampton","707228","Senwod Contracting Limited","SI-15627","2,200.00","Hire of Plant","130228579","21/09/2018","Environmental Maintenance","Ground Maintenance East","R3201"
"Wolverhampton City Council","http://opendatacommunities.org/id/metropolitan-district-council/wolverhampton","707228","Senwod Contracting Limited","SI-15628","200.00","Materials","130228580","19/09/2018","Bereavement Services","Bereavement services - Grounds maintenance","R4007"
"Wolverhampton City Council","http://opendatacommunities.org/id/metropolitan-district-council/wolverhampton","707228","Senwod Contracting Limited","SI-15628","900.00","Materials","130228580","19/09/2018","Bereavement Services","Bereavement services - Grounds maintenance","R4007"
"Wolverhampton City Council","http://opendatacommunities.org/id/metropolitan-district-council/wolverhampton","707228","Senwod Contracting Limited","SI-15626","500.00","Hire of Plant","130228578","21/09/2018","Environmental Maintenance","Ground Maintenance East","R3201"
"Wolverhampton City Council","http://opendatacommunities.org/id/metropolitan-district-council/wolverhampton","707228","Senwod Contracting Limited","SI-15602","600.00","Hire of Plant","130226691","05/09/2018","Environmental Maintenance","Ground Maintenance East","R3201"
"Wolverhampton City Council","http://opendatacommunities.org/id/metropolitan-district-council/wolverhampton","707228","Senwod Contracting Limited","SI-15602","200.00","Hire of Plant","130226691","05/09/2018","Environmental Maintenance","Ground Maintenance East","R3201"
"Wolverhampton City Council","http://opendatacommunities.org/id/metropolitan-district-council/wolverhampton","707247","Severn Trent Water Limited","404098554","1,817.61","Water Charges","190504680","14/09/2018","Corporate Asset Management","Central Utilities to Recharge","R2400"
"Wolverhampton City Council","http://opendatacommunities.org/id/metropolitan-district-council/wolverhampton","707260","SGS United Kingdom Limited","WWB1124859","1,600.00","Services - Professional Fees","130226452","19/09/2018","Customer Services","City Direct","R4400"
"Wolverhampton City Council","http://opendatacommunities.org/id/metropolitan-district-council/wolverhampton","707295","Shropshire Coffee Limited","147287","44.25","Provisions (Resale)","130228584","21/09/2018","Adult Education","Caf�","R4102"
"Wolverhampton City Council","http://opendatacommunities.org/id/metropolitan-district-council/wolverhampton","707295","Shropshire Coffee Limited","144081","427.75","Provisions (Resale)","130220567","19/09/2018","Visitor Economy","The Little Civic","R4102"
"Wolverhampton City Council","http://opendatacommunities.org/id/metropolitan-district-council/wolverhampton","707295","Shropshire Coffee Limited","147237","69.85","Provisions (Resale)","130228583","19/09/2018","Adult Education","Caf�","R4102"
"Wolverhampton City Council","http://opendatacommunities.org/id/metropolitan-district-council/wolverhampton","707295","Shropshire Coffee Limited","146620","88.50","Provisions (Resale)","130228582","21/09/2018","Adult Education","Caf�","R4102"
"Wolverhampton City Council","http://opendatacommunities.org/id/metropolitan-district-council/wolverhampton","707295","Shropshire Coffee Limited","145399","83.50","Provisions (Resale)","130228581","19/09/2018","Adult Education","Caf�","R4102"
"Wolverhampton City Council","http://opendatacommunities.org/id/metropolitan-district-council/wolverhampton","707295","Shropshire Coffee Limited","149130","95.00","Provisions (Resale)","130228710","21/09/2018","Visitor Economy","Catering Overhead Account","R4102"
"Wolverhampton City Council","http://opendatacommunities.org/id/metropolitan-district-council/wolverhampton","707296","Shropshire Council","EAS000488","135.00","Training Expenses","130227737","19/09/2018","Looked After Children","Adoption and Residence Team & Allowances","R1650"
"Wolverhampton City Council","http://opendatacommunities.org/id/metropolitan-district-council/wolverhampton","707296","Shropshire Council","EAS000451","36.00","Training Expenses","130228711","19/09/2018","Looked After Children","Adoption and Residence Team & Allowances","R1650"
"Wolverhampton City Council","http://opendatacommunities.org/id/metropolitan-district-council/wolverhampton","707296","Shropshire Council","HHA001473","6,395.40","Client Transport - SEN","130228871","19/09/2018","Special Educational Needs","Special - Transport","R3043"
"Wolverhampton City Council","http://opendatacommunities.org/id/metropolitan-district-council/wolverhampton","707303","Sico Europe Limited","INV0121591","707.77","Equipment - Catering","130222734","12/09/2018","Catering","Education Catering - General Overheads","R4010"
"Wolverhampton City Council","http://opendatacommunities.org/id/metropolitan-district-council/wolverhampton","707313","Signature","SI00201028","245.00","Exam Expenses (Non-Employee)","130224798","19/09/2018","Adult Education","Discretionary Fund","R4630"
"Wolverhampton City Council","http://opendatacommunities.org/id/metropolitan-district-council/wolverhampton","707313","Signature","SI00200070","50.00","Exam Expenses (Non-Employee)","130218605","19/09/2018","Adult Education","Discretionary Fund","R4630"
"Wolverhampton City Council","http://opendatacommunities.org/id/metropolitan-district-council/wolverhampton","707313","Signature","9399","53.00","Exam Expenses (Non-Employee)","130224787","07/09/2018","Adult Education","Discretionary Fund","R4630"
"Wolverhampton City Council","http://opendatacommunities.org/id/metropolitan-district-council/wolverhampton","707313","Signature","SI00201032","105.00","Exam Expenses (Non-Employee)","130224802","07/09/2018","Adult Education","Discretionary Fund","R4630"
"Wolverhampton City Council","http://opendatacommunities.org/id/metropolitan-district-council/wolverhampton","707313","Signature","SI00201594","206.00","Exam Expenses (Non-Employee)","130224808","19/09/2018","Adult Education","Discretionary Fund","R4630"
"Wolverhampton City Council","http://opendatacommunities.org/id/metropolitan-district-council/wolverhampton","707313","Signature","SI00201033","175.00","Exam Expenses (Non-Employee)","130224803","19/09/2018","Adult Education","Discretionary Fund","R4630"
"Wolverhampton City Council","http://opendatacommunities.org/id/metropolitan-district-council/wolverhampton","707313","Signature","SI00200387","40.00","Exam Expenses (Non-Employee)","130224790","07/09/2018","Adult Education","Discretionary Fund","R4630"
"Wolverhampton City Council","http://opendatacommunities.org/id/metropolitan-district-council/wolverhampton","707313","Signature","SI00201030","245.00","Exam Expenses (Non-Employee)","130224800","19/09/2018","Adult Education","Discretionary Fund","R4630"
"Wolverhampton City Council","http://opendatacommunities.org/id/metropolitan-district-council/wolverhampton","707313","Signature","SI00198570","50.00","Exam Expenses (Non-Employee)","130224788","19/09/2018","Adult Education","Discretionary Fund","R4630"
"Wolverhampton City Council","http://opendatacommunities.org/id/metropolitan-district-council/wolverhampton","707313","Signature","SI00201513","53.00","Exam Expenses (Non-Employee)","130224807","07/09/2018","Adult Education","Discretionary Fund","R4630"
"Wolverhampton City Council","http://opendatacommunities.org/id/metropolitan-district-council/wolverhampton","707313","Signature","SI00199461","412.00","Exam Expenses (Non-Employee)","130224789","07/09/2018","Adult Education","Discretionary Fund","R4630"
"Wolverhampton City Council","http://opendatacommunities.org/id/metropolitan-district-council/wolverhampton","707313","Signature","SI00201031","105.00","Exam Expenses (Non-Employee)","130224801","19/09/2018","Adult Education","Discretionary Fund","R4630"
"Wolverhampton City Council","http://opendatacommunities.org/id/metropolitan-district-council/wolverhampton","707313","Signature","SI00201399","50.00","Exam Expenses (Non-Employee)","130224805","19/09/2018","Adult Education","Discretionary Fund","R4630"
"Wolverhampton City Council","http://opendatacommunities.org/id/metropolitan-district-council/wolverhampton","707313","Signature","SI00201400","35.00","Exam Expenses (Non-Employee)","130224806","07/09/2018","Adult Education","Discretionary Fund","R4630"
"Wolverhampton City Council","http://opendatacommunities.org/id/metropolitan-district-council/wolverhampton","707313","Signature","SI00200756","80.00","Exam Expenses (Non-Employee)","130224795","07/09/2018","Adult Education","Discretionary Fund","R4630"
"Wolverhampton City Council","http://opendatacommunities.org/id/metropolitan-district-council/wolverhampton","707349","SUEZ Recycling & Recovery (Sita UK)","80112480","16,260.40","TPP - Waste Disposal","130227596","19/09/2018","Environmental Maintenance","Ground Maintenance East","R5003"
"Wolverhampton City Council","http://opendatacommunities.org/id/metropolitan-district-council/wolverhampton","707349","SUEZ Recycling & Recovery (Sita UK)","80112480","812.50","TPP - Waste Disposal","130227596","19/09/2018","Highways Maintenance","Gully Sweeping","R5003"
"Wolverhampton City Council","http://opendatacommunities.org/id/metropolitan-district-council/wolverhampton","707356","SJ Cleaning (Midlands) Limited","Oak181902","490.00","Services - Professional Fees","130229911","28/09/2018","Schools","Oak Meadow Primary School","R4400"
"Wolverhampton City Council","http://opendatacommunities.org/id/metropolitan-district-council/wolverhampton","707356","SJ Cleaning (Midlands) Limited","WCC1819/05","4,187.25","Window Cleaning","130228334","14/09/2018","Facilities Management","Civic Centre","R2701"
"Wolverhampton City Council","http://opendatacommunities.org/id/metropolitan-district-council/wolverhampton","707356","SJ Cleaning (Midlands) Limited","WCC1819/04","4,745.00","Window Cleaning","130228333","26/09/2018","Facilities Management","Civic Centre","R2701"
"Wolverhampton City Council","http://opendatacommunities.org/id/metropolitan-district-council/wolverhampton","707385","Smestow School Spec. Sports College","SEN Mainstream Top Ups Summer Term 18 - Smestow","5,262.38","Grant Payments","190501517","05/09/2018","Central Education","High Needs Top Up Academies","R4700"
"Wolverhampton City Council","http://opendatacommunities.org/id/metropolitan-district-council/wolverhampton","707388","Smith Bros(Caer Conan)Wholesale Limited","575005","200.80","Materials","130228335","19/09/2018","Street Lighting","Street Lighting Maintenance","R4007"
"Wolverhampton City Council","http://opendatacommunities.org/id/metropolitan-district-council/wolverhampton","707388","Smith Bros(Caer Conan)Wholesale Limited","575981","1,453.21","Materials","130229094","26/09/2018","Street Lighting","Street Lighting Maintenance","R4007"
"Wolverhampton City Council","http://opendatacommunities.org/id/metropolitan-district-council/wolverhampton","707388","Smith Bros(Caer Conan)Wholesale Limited","575984","251.86","Materials","130229097","28/09/2018","Street Lighting","Street Lighting Maintenance","R4007"
"Wolverhampton City Council","http://opendatacommunities.org/id/metropolitan-district-council/wolverhampton","707388","Smith Bros(Caer Conan)Wholesale Limited","575982","282.69","Materials","130229095","28/09/2018","Street Lighting","Street Lighting Maintenance","R4007"
"Wolverhampton City Council","http://opendatacommunities.org/id/metropolitan-district-council/wolverhampton","707388","Smith Bros(Caer Conan)Wholesale Limited","575985","509.76","Materials","130229098","26/09/2018","Street Lighting","Street Lighting Maintenance","R4007"
"Wolverhampton City Council","http://opendatacommunities.org/id/metropolitan-district-council/wolverhampton","707388","Smith Bros(Caer Conan)Wholesale Limited","575983","31.41","Materials","130229096","26/09/2018","Street Lighting","Street Lighting Maintenance","R4007"
"Wolverhampton City Council","http://opendatacommunities.org/id/metropolitan-district-council/wolverhampton","707388","Smith Bros(Caer Conan)Wholesale Limited","575006","831.76","Materials","130228336","19/09/2018","Street Lighting","Street Lighting Maintenance","R4007"
"Wolverhampton City Council","http://opendatacommunities.org/id/metropolitan-district-council/wolverhampton","707407","Soc. Of Chief Librarians In Engl & Wales","175WM2017/18","394.86","Books","130227597","07/09/2018","Local Economy","Global Budgets","R4309"
"Wolverhampton City Council","http://opendatacommunities.org/id/metropolitan-district-council/wolverhampton","707418","Solihull M B C","104660","2,424.81","TPP - Payments to Local Authorities","130229909","28/09/2018","Safeguarding","Head of Service Quality and Safeguarding","R5100"
"Wolverhampton City Council","http://opendatacommunities.org/id/metropolitan-district-council/wolverhampton","707418","Solihull M B C","105870","2,500.00","Services - Professional Fees","130228960","21/09/2018","Corporate Accounts","Corporate Budgets","R4400"
"Wolverhampton City Council","http://opendatacommunities.org/id/metropolitan-district-council/wolverhampton","707438","Ormiston SWB Academy","SEN Mainstream Top Ups Summer Term 18 - Ormiston SWB","12,151.31","Grant Payments","190501511","05/09/2018","Central Education","High Needs Top Up Academies","R4700"
"Wolverhampton City Council","http://opendatacommunities.org/id/metropolitan-district-council/wolverhampton","707441","Southern Electric PLC","2916413670003","250.00","Electricity","190504409","12/09/2018","Schools","Fallings Park Primary School","R2100"
"Wolverhampton City Council","http://opendatacommunities.org/id/metropolitan-district-council/wolverhampton","707457","Spaceright Europe Limited (Ultralon)","SI440787","130.00","Equipment - R & M","130227601","19/09/2018","Catering","Education Catering - General Overheads","R4003"
"Wolverhampton City Council","http://opendatacommunities.org/id/metropolitan-district-council/wolverhampton","707457","Spaceright Europe Limited (Ultralon)","SI441420","230.00","Equipment - R & M","130227602","19/09/2018","Catering","Education Catering - General Overheads","R4003"
"Wolverhampton City Council","http://opendatacommunities.org/id/metropolitan-district-council/wolverhampton","707457","Spaceright Europe Limited (Ultralon)","SI441916","280.00","Equipment - R & M","130224811","19/09/2018","Catering","Education Catering - General Overheads","R4003"
"Wolverhampton City Council","http://opendatacommunities.org/id/metropolitan-district-council/wolverhampton","707457","Spaceright Europe Limited (Ultralon)","SI440762","330.00","Equipment - R & M","130227599","19/09/2018","Catering","Education Catering - General Overheads","R4003"
"Wolverhampton City Council","http://opendatacommunities.org/id/metropolitan-district-council/wolverhampton","707457","Spaceright Europe Limited (Ultralon)","SI441423","105.00","Equipment - R & M","130224160","19/09/2018","Catering","Education Catering - General Overheads","R4003"
"Wolverhampton City Council","http://opendatacommunities.org/id/metropolitan-district-council/wolverhampton","707457","Spaceright Europe Limited (Ultralon)","SI441422","155.00","Equipment - R & M","130224159","19/09/2018","Catering","Education Catering - General Overheads","R4003"
"Wolverhampton City Council","http://opendatacommunities.org/id/metropolitan-district-council/wolverhampton","707457","Spaceright Europe Limited (Ultralon)","SI440761","380.00","Equipment - R & M","130227598","19/09/2018","Catering","Education Catering - General Overheads","R4003"
"Wolverhampton City Council","http://opendatacommunities.org/id/metropolitan-district-council/wolverhampton","707457","Spaceright Europe Limited (Ultralon)","SI440786","280.00","Equipment - R & M","130227600","14/09/2018","Catering","Education Catering - General Overheads","R4003"
"Wolverhampton City Council","http://opendatacommunities.org/id/metropolitan-district-council/wolverhampton","707457","Spaceright Europe Limited (Ultralon)","SI439808","305.00","Equipment - R & M","130223070","19/09/2018","Catering","Education Catering - General Overheads","R4003"
"Wolverhampton City Council","http://opendatacommunities.org/id/metropolitan-district-council/wolverhampton","707457","Spaceright Europe Limited (Ultralon)","SI443333","355.00","Equipment - R & M","130226163","19/09/2018","Catering","Education Catering - General Overheads","R4003"
"Wolverhampton City Council","http://opendatacommunities.org/id/metropolitan-district-council/wolverhampton","707463","Specialised Tools & Equipment Limited","090189","277.50","Equipment - Purchase","130227603","12/09/2018","Environmental Maintenance","Direct Schools","R4000"
"Wolverhampton City Council","http://opendatacommunities.org/id/metropolitan-district-council/wolverhampton","707463","Specialised Tools & Equipment Limited","090189","146.05","Equipment - Purchase","130227603","12/09/2018","Environmental Maintenance","Direct Schools","R4000"
"Wolverhampton City Council","http://opendatacommunities.org/id/metropolitan-district-council/wolverhampton","707463","Specialised Tools & Equipment Limited","090189","43.30","Equipment - Purchase","130227603","12/09/2018","Environmental Maintenance","Direct Schools","R4000"
"Wolverhampton City Council","http://opendatacommunities.org/id/metropolitan-district-council/wolverhampton","707463","Specialised Tools & Equipment Limited","090189","738.00","Equipment - Purchase","130227603","12/09/2018","Environmental Maintenance","Graffiti Removal Team","R4000"
"Wolverhampton City Council","http://opendatacommunities.org/id/metropolitan-district-council/wolverhampton","707463","Specialised Tools & Equipment Limited","090189","65.00","Equipment - Purchase","130227603","12/09/2018","Environmental Maintenance","Direct Schools","R4000"
"Wolverhampton City Council","http://opendatacommunities.org/id/metropolitan-district-council/wolverhampton","707465","Specialist Crafts Limited","SINHO00367999","284.49","Equipment - Purchase","130229533","28/09/2018","Adult Education","Creative Studies Delivery Area","R4000"
"Wolverhampton City Council","http://opendatacommunities.org/id/metropolitan-district-council/wolverhampton","707474","Speedy Asset Services Limited","7111994096","28.51","Equipment - Hire","130228889","21/09/2018","Highways Maintenance","Planned Highways Maintenance","R4001"
"Wolverhampton City Council","http://opendatacommunities.org/id/metropolitan-district-council/wolverhampton","707474","Speedy Asset Services Limited","7112200988","29.81","Equipment - Hire","130228896","21/09/2018","Highways Maintenance","Planned Highways Maintenance","R4001"
"Wolverhampton City Council","http://opendatacommunities.org/id/metropolitan-district-council/wolverhampton","707474","Speedy Asset Services Limited","7111990669","88.00","Equipment - Hire","130228882","21/09/2018","Highways Maintenance","Planned Highways Maintenance","R4001"
"Wolverhampton City Council","http://opendatacommunities.org/id/metropolitan-district-council/wolverhampton","707474","Speedy Asset Services Limited","7111991629","107.27","Equipment - Hire","130228886","21/09/2018","Highways Maintenance","Planned Highways Maintenance","R4001"
"Wolverhampton City Council","http://opendatacommunities.org/id/metropolitan-district-council/wolverhampton","707474","Speedy Asset Services Limited","7112201570","118.96","Equipment - Hire","130228903","21/09/2018","Highways Maintenance","Planned Highways Maintenance","R4001"
"Wolverhampton City Council","http://opendatacommunities.org/id/metropolitan-district-council/wolverhampton","707474","Speedy Asset Services Limited","7111994932","294.15","Equipment - Hire","130228893","21/09/2018","Highways Maintenance","Planned Highways Maintenance","R4001"
"Wolverhampton City Council","http://opendatacommunities.org/id/metropolitan-district-council/wolverhampton","707474","Speedy Asset Services Limited","7111994386","114.40","Equipment - Hire","130228891","21/09/2018","Highways Maintenance","Planned Highways Maintenance","R4001"
"Wolverhampton City Council","http://opendatacommunities.org/id/metropolitan-district-council/wolverhampton","707474","Speedy Asset Services Limited","7111988120","52.80","Equipment - Hire","130228873","21/09/2018","Highways Maintenance","Planned Highways Maintenance","R4001"
"Wolverhampton City Council","http://opendatacommunities.org/id/metropolitan-district-council/wolverhampton","707474","Speedy Asset Services Limited","7112201208","56.95","Equipment - Hire","130228899","21/09/2018","Highways Maintenance","Planned Highways Maintenance","R4001"
"Wolverhampton City Council","http://opendatacommunities.org/id/metropolitan-district-council/wolverhampton","707474","Speedy Asset Services Limited","7112202279","92.00","Equipment - Hire","130228907","21/09/2018","Highways Maintenance","Planned Highways Maintenance","R4001"
"Wolverhampton City Council","http://opendatacommunities.org/id/metropolitan-district-council/wolverhampton","707474","Speedy Asset Services Limited","7112200775","56.99","Equipment - Hire","130228894","21/09/2018","Highways Maintenance","Planned Highways Maintenance","R4001"
"Wolverhampton City Council","http://opendatacommunities.org/id/metropolitan-district-council/wolverhampton","707474","Speedy Asset Services Limited","7111988506","52.80","Equipment - Hire","130228874","21/09/2018","Highways Maintenance","Planned Highways Maintenance","R4001"
"Wolverhampton City Council","http://opendatacommunities.org/id/metropolitan-district-council/wolverhampton","707474","Speedy Asset Services Limited","7111990859","54.52","Equipment - Hire","130228883","21/09/2018","Highways Maintenance","Planned Highways Maintenance","R4001"
"Wolverhampton City Council","http://opendatacommunities.org/id/metropolitan-district-council/wolverhampton","707474","Speedy Asset Services Limited","7111994394","54.47","Equipment - Hire","130228892","21/09/2018","Highways Maintenance","Planned Highways Maintenance","R4001"
"Wolverhampton City Council","http://opendatacommunities.org/id/metropolitan-district-council/wolverhampton","707474","Speedy Asset Services Limited","7111988514","113.78","Equipment - Hire","130228876","21/09/2018","Highways Maintenance","Planned Highways Maintenance","R4001"
"Wolverhampton City Council","http://opendatacommunities.org/id/metropolitan-district-council/wolverhampton","707474","Speedy Asset Services Limited","7111990282","257.40","Equipment - Hire","130228880","21/09/2018","Highways Maintenance","Planned Highways Maintenance","R4001"
"Wolverhampton City Council","http://opendatacommunities.org/id/metropolitan-district-council/wolverhampton","707474","Speedy Asset Services Limited","7112202530","108.19","Equipment - Hire","130228911","21/09/2018","Highways Maintenance","Planned Highways Maintenance","R4001"
"Wolverhampton City Council","http://opendatacommunities.org/id/metropolitan-district-council/wolverhampton","707474","Speedy Asset Services Limited","7112200917","56.99","Equipment - Hire","130228895","21/09/2018","Highways Maintenance","Planned Highways Maintenance","R4001"
"Wolverhampton City Council","http://opendatacommunities.org/id/metropolitan-district-council/wolverhampton","707474","Speedy Asset Services Limited","7111993526","54.52","Equipment - Hire","130228887","21/09/2018","Highways Maintenance","Planned Highways Maintenance","R4001"
"Wolverhampton City Council","http://opendatacommunities.org/id/metropolitan-district-council/wolverhampton","707474","Speedy Asset Services Limited","7111991052","52.80","Equipment - Hire","130228884","21/09/2018","Highways Maintenance","Planned Highways Maintenance","R4001"
"Wolverhampton City Council","http://opendatacommunities.org/id/metropolitan-district-council/wolverhampton","707474","Speedy Asset Services Limited","7112201367","55.20","Equipment - Hire","130228901","21/09/2018","Highways Maintenance","Planned Highways Maintenance","R4001"
"Wolverhampton City Council","http://opendatacommunities.org/id/metropolitan-district-council/wolverhampton","707474","Speedy Asset Services Limited","7111988913","113.78","Equipment - Hire","130228877","21/09/2018","Highways Maintenance","Planned Highways Maintenance","R4001"
"Wolverhampton City Council","http://opendatacommunities.org/id/metropolitan-district-council/wolverhampton","707474","Speedy Asset Services Limited","7112202541","112.15","Equipment - Hire","130228912","21/09/2018","Highways Maintenance","Planned Highways Maintenance","R4001"
"Wolverhampton City Council","http://opendatacommunities.org/id/metropolitan-district-council/wolverhampton","707474","Speedy Asset Services Limited","7112202234","269.10","Equipment - Hire","130228906","21/09/2018","Highways Maintenance","Planned Highways Maintenance","R4001"
"Wolverhampton City Council","http://opendatacommunities.org/id/metropolitan-district-council/wolverhampton","707474","Speedy Asset Services Limited","7112202328","92.00","Equipment - Hire","130228908","21/09/2018","Highways Maintenance","Planned Highways Maintenance","R4001"
"Wolverhampton City Council","http://opendatacommunities.org/id/metropolitan-district-council/wolverhampton","707474","Speedy Asset Services Limited","7111988507","121.00","Equipment - Hire","130228875","21/09/2018","Highways Maintenance","Planned Highways Maintenance","R4001"
"Wolverhampton City Council","http://opendatacommunities.org/id/metropolitan-district-council/wolverhampton","707474","Speedy Asset Services Limited","7112201159","119.60","Equipment - Hire","130228898","21/09/2018","Highways Maintenance","Planned Highways Maintenance","R4001"
"Wolverhampton City Council","http://opendatacommunities.org/id/metropolitan-district-council/wolverhampton","707474","Speedy Asset Services Limited","7112201562","118.96","Equipment - Hire","130228902","21/09/2018","Highways Maintenance","Planned Highways Maintenance","R4001"
"Wolverhampton City Council","http://opendatacommunities.org/id/metropolitan-district-council/wolverhampton","707474","Speedy Asset Services Limited","7112201366","307.50","Equipment - Hire","130228900","21/09/2018","Highways Maintenance","Planned Highways Maintenance","R4001"
"Wolverhampton City Council","http://opendatacommunities.org/id/metropolitan-district-council/wolverhampton","707474","Speedy Asset Services Limited","7111991440","103.49","Equipment - Hire","130228885","21/09/2018","Highways Maintenance","Planned Highways Maintenance","R4001"
"Wolverhampton City Council","http://opendatacommunities.org/id/metropolitan-district-council/wolverhampton","707474","Speedy Asset Services Limited","7111993694","54.52","Equipment - Hire","130228888","21/09/2018","Highways Maintenance","Planned Highways Maintenance","R4001"
"Wolverhampton City Council","http://opendatacommunities.org/id/metropolitan-district-council/wolverhampton","707474","Speedy Asset Services Limited","7112202452","55.20","Equipment - Hire","130228910","21/09/2018","Highways Maintenance","Planned Highways Maintenance","R4001"
"Wolverhampton City Council","http://opendatacommunities.org/id/metropolitan-district-council/wolverhampton","707474","Speedy Asset Services Limited","7112202334","56.99","Equipment - Hire","130228909","21/09/2018","Highways Maintenance","Planned Highways Maintenance","R4001"
"Wolverhampton City Council","http://opendatacommunities.org/id/metropolitan-district-council/wolverhampton","707474","Speedy Asset Services Limited","7111990450","88.00","Equipment - Hire","130228881","21/09/2018","Highways Maintenance","Planned Highways Maintenance","R4001"
"Wolverhampton City Council","http://opendatacommunities.org/id/metropolitan-district-council/wolverhampton","707492","Sportsafe UK Limited","530760","1,959.00","R&M - Departmental planned (external)","130227441","26/09/2018","Leisure Services","Aldersley Leisure Village","R2001"
"Wolverhampton City Council","http://opendatacommunities.org/id/metropolitan-district-council/wolverhampton","707517","St George�S Veterinary Group","WCC2018_08","1,103.36","Services - Professional Fees","130229536","28/09/2018","Public Protection","Pest Control & Animal Welfare","R4400"
"Wolverhampton City Council","http://opendatacommunities.org/id/metropolitan-district-council/wolverhampton","707517","St George�S Veterinary Group","WCC2018_07","936.64","Services - Professional Fees","130229535","28/09/2018","Public Protection","Pest Control & Animal Welfare","R4400"
"Wolverhampton City Council","http://opendatacommunities.org/id/metropolitan-district-council/wolverhampton","707517","St George�S Veterinary Group","WCC2018_06","640.62","Services - Professional Fees","130229534","26/09/2018","Public Protection","Pest Control & Animal Welfare","R4400"
"Wolverhampton City Council","http://opendatacommunities.org/id/metropolitan-district-council/wolverhampton","707519","St Ives Chambers","INVEL1","350.00","Services - Professional Fees","130227071","05/09/2018","Public Protection","Trading Standards","R4400"
"Wolverhampton City Council","http://opendatacommunities.org/id/metropolitan-district-council/wolverhampton","707519","St Ives Chambers","28092018/31","300.00","Training Expenses","130229537","26/09/2018","Public Service Reform","Centralised Training","R1650"
"Wolverhampton City Council","http://opendatacommunities.org/id/metropolitan-district-council/wolverhampton","707519","St Ives Chambers","INVLWL2","350.00","Services - Professional Fees","130227072","05/09/2018","Public Protection","Trading Standards","R4400"
"Wolverhampton City Council","http://opendatacommunities.org/id/metropolitan-district-council/wolverhampton","707519","St Ives Chambers","INVAPJ15","300.00","Services - Professional Fees","130227070","05/09/2018","Public Protection","Trading Standards","R4400"
"Wolverhampton City Council","http://opendatacommunities.org/id/metropolitan-district-council/wolverhampton","707542","St Peter�S Collegiate School","SEN Mainstream Top Ups Summer Term 18 - St Peters Collegiate","10,524.76","Grant Payments","190501516","05/09/2018","Central Education","High Needs Top Up Academies","R4700"
"Wolverhampton City Council","http://opendatacommunities.org/id/metropolitan-district-council/wolverhampton","707564","Staffordshire County Council","1000016878","1,609.74","Client Transport - SEN","130227606","12/09/2018","Special Educational Needs","Special - Transport","R3043"
"Wolverhampton City Council","http://opendatacommunities.org/id/metropolitan-district-council/wolverhampton","707564","Staffordshire County Council","1000016883","4,504.50","Client Transport - SEN","130227609","12/09/2018","Special Educational Needs","Special - Transport","R3043"
"Wolverhampton City Council","http://opendatacommunities.org/id/metropolitan-district-council/wolverhampton","707564","Staffordshire County Council","1000016876","6,791.40","Client Transport - SEN","130227605","12/09/2018","Special Educational Needs","Special - Transport","R3043"
"Wolverhampton City Council","http://opendatacommunities.org/id/metropolitan-district-council/wolverhampton","707564","Staffordshire County Council","1000016885","5,124.24","Client Transport - SEN","130227610","12/09/2018","Special Educational Needs","Special - Transport","R3043"
"Wolverhampton City Council","http://opendatacommunities.org/id/metropolitan-district-council/wolverhampton","707564","Staffordshire County Council","1000016881","5,751.90","Client Transport - SEN","130227608","12/09/2018","Special Educational Needs","Special - Transport","R3043"
"Wolverhampton City Council","http://opendatacommunities.org/id/metropolitan-district-council/wolverhampton","707564","Staffordshire County Council","1000016874","4,192.98","Client Transport - SEN","130227604","12/09/2018","Special Educational Needs","Special - Transport","R3043"
"Wolverhampton City Council","http://opendatacommunities.org/id/metropolitan-district-council/wolverhampton","707564","Staffordshire County Council","1000016879","1,866.48","Client Transport - SEN","130227607","12/09/2018","Special Educational Needs","Special - Transport","R3043"
"Wolverhampton City Council","http://opendatacommunities.org/id/metropolitan-district-council/wolverhampton","707572","Stage Audio Services Limited","4094","120.00","Services - Professional Fees","130227442","12/09/2018","Visitor Economy","The Little Civic","R4400"
"Wolverhampton City Council","http://opendatacommunities.org/id/metropolitan-district-council/wolverhampton","707580","Stannah Lifts Limited","18/0182/SAG","2,893.00","Grants paid out to other organisations","190504706","14/09/2018","-","Disabled Facilities Grants","C5011"
"Wolverhampton City Council","http://opendatacommunities.org/id/metropolitan-district-council/wolverhampton","707580","Stannah Lifts Limited","17/0758/SAG","2,584.00","Grants paid out to other organisations","190503225","07/09/2018","-","Disabled Facilities Grants","C5011"
"Wolverhampton City Council","http://opendatacommunities.org/id/metropolitan-district-council/wolverhampton","707580","Stannah Lifts Limited","18/0174/SAG","995.00","Grants paid out to other organisations","190507900","19/09/2018","-","Disabled Facilities Grants","C5011"
"Wolverhampton City Council","http://opendatacommunities.org/id/metropolitan-district-council/wolverhampton","707580","Stannah Lifts Limited","18/0250/SAG","2,893.00","Grants paid out to other organisations","190510720","26/09/2018","-","Disabled Facilities Grants","C5011"
"Wolverhampton City Council","http://opendatacommunities.org/id/metropolitan-district-council/wolverhampton","707580","Stannah Lifts Limited","17/0691/SAG","3,456.00","Grants paid out to other organisations","190504707","14/09/2018","-","Disabled Facilities Grants","C5011"
"Wolverhampton City Council","http://opendatacommunities.org/id/metropolitan-district-council/wolverhampton","707580","Stannah Lifts Limited","17/0757/SAG","4,931.00","Grants paid out to other organisations","190501949","05/09/2018","-","Disabled Facilities Grants","C5011"
"Wolverhampton City Council","http://opendatacommunities.org/id/metropolitan-district-council/wolverhampton","707580","Stannah Lifts Limited","18/0401/SLM","448.45","Grants paid out to other organisations","190503222","07/09/2018","-","Disabled Facilities Grants","C5011"
"Wolverhampton City Council","http://opendatacommunities.org/id/metropolitan-district-council/wolverhampton","707580","Stannah Lifts Limited","18/0144/SAG","875.00","Grants paid out to other organisations","190507901","19/09/2018","-","Disabled Facilities Grants","C5011"
"Wolverhampton City Council","http://opendatacommunities.org/id/metropolitan-district-council/wolverhampton","707580","Stannah Lifts Limited","18/0180/SAG","2,495.00","Grants paid out to other organisations","190509071","21/09/2018","-","Disabled Facilities Grants","C5011"
"Wolverhampton City Council","http://opendatacommunities.org/id/metropolitan-district-council/wolverhampton","707580","Stannah Lifts Limited","18/0400/SLM","188.89","Grants paid out to other organisations","190503224","07/09/2018","-","Disabled Facilities Grants","C5011"
"Wolverhampton City Council","http://opendatacommunities.org/id/metropolitan-district-council/wolverhampton","707580","Stannah Lifts Limited","18/0129/SAG","5,082.00","Grants paid out to other organisations","190507899","19/09/2018","-","Disabled Facilities Grants","C5011"
"Wolverhampton City Council","http://opendatacommunities.org/id/metropolitan-district-council/wolverhampton","707580","Stannah Lifts Limited","18/0445/SLM","212.27","Grants paid out to other organisations","190510719","26/09/2018","-","Disabled Facilities Grants","C5011"
"Wolverhampton City Council","http://opendatacommunities.org/id/metropolitan-district-council/wolverhampton","707580","Stannah Lifts Limited","18/0175/SAG","3,098.00","Grants paid out to other organisations","190511060","28/09/2018","-","Disabled Facilities Grants","C5011"
"Wolverhampton City Council","http://opendatacommunities.org/id/metropolitan-district-council/wolverhampton","707580","Stannah Lifts Limited","18/0178/SAG","4,993.00","Grants paid out to other organisations","190504705","14/09/2018","-","Disabled Facilities Grants","C5011"
"Wolverhampton City Council","http://opendatacommunities.org/id/metropolitan-district-council/wolverhampton","707580","Stannah Lifts Limited","18/0415/SLM","86.37","Grants paid out to other organisations","190507897","19/09/2018","-","Disabled Facilities Grants","C5011"
"Wolverhampton City Council","http://opendatacommunities.org/id/metropolitan-district-council/wolverhampton","707609","Sterling Hydrotech Limited","32194","344.52","R&M - Departmental planned (external)","130228913","21/09/2018","Leisure Services","Central Baths","R2001"
"Wolverhampton City Council","http://opendatacommunities.org/id/metropolitan-district-council/wolverhampton","707627","Stoneleigh Consultancy Limited","46999","222.50","Computing - Purchase of Hardware","130225196","05/09/2018","Maintenance Programme","Centralised R&M","R4530"
"Wolverhampton City Council","http://opendatacommunities.org/id/metropolitan-district-council/wolverhampton","707657","Stulz UK Limited","17-5658","2,158.75","R&M - Departmental planned (internal)","130228388","14/09/2018","Maintenance Programme","Civic Centre Repairs & Maintenance","R2000"
"Wolverhampton City Council","http://opendatacommunities.org/id/metropolitan-district-council/wolverhampton","707680","Sunfield Childrens Homes Limited","SIN000156","29,004.33","TPP - Independent Schools","130224990","05/09/2018","Special Educational Needs","SEN Education OOC","R5036"
"Wolverhampton City Council","http://opendatacommunities.org/id/metropolitan-district-council/wolverhampton","707682","Sunflowers Day Nursery Limited","TFT Autumn 2018 Inst 1","6,508.08","TPP - Private Nursery Education Funding","190508160","19/09/2018","Early Years","Early Years Entitlement Funding for Disadvantaged 2 Year Olds","R5035"
"Wolverhampton City Council","http://opendatacommunities.org/id/metropolitan-district-council/wolverhampton","707682","Sunflowers Day Nursery Limited","70-17","46.00","TPP - Child Care provided for client","130223897","12/09/2018","Adult Education","Discretionary Fund","R5034"
"Wolverhampton City Council","http://opendatacommunities.org/id/metropolitan-district-council/wolverhampton","707682","Sunflowers Day Nursery Limited","NEF Autumn 2018 INST 1","15,760.50","TPP - Private Nursery Education Funding","190508148","19/09/2018","Early Years","Early Years Universal Entitlement for 3 and 4 Year Olds","R5035"
"Wolverhampton City Council","http://opendatacommunities.org/id/metropolitan-district-council/wolverhampton","707685","Sunnyside Kennels","SS1103","2,611.26","Services - Professional Fees","130226014","05/09/2018","Public Protection","Pest Control & Animal Welfare","R4400"
"Wolverhampton City Council","http://opendatacommunities.org/id/metropolitan-district-council/wolverhampton","707686","Sunrise Medical Limited","19UI013093","400.00","Equipment - Purchase","130226015","12/09/2018","Older People Provider Services","ILS Stores","R4000"
"Wolverhampton City Council","http://opendatacommunities.org/id/metropolitan-district-council/wolverhampton","707718","Sweet & Maxwell/Thomson Reuters","6800640198","8,062.00","Subscriptions","130227845","26/09/2018","Legal Services","Legal Services","R4701"
"Wolverhampton City Council","http://opendatacommunities.org/id/metropolitan-district-council/wolverhampton","707722","Swift Maintnce Services (1973) Limited","27273","188.08","Equipment - R & M","130227849","12/09/2018","Older People Provider Services","Bradley Lodge Resource Centre","R4003"
"Wolverhampton City Council","http://opendatacommunities.org/id/metropolitan-district-council/wolverhampton","707722","Swift Maintnce Services (1973) Limited","27105","47.00","Equipment - Catering","130226854","07/09/2018","Bereavement Services","Coroners","R4010"
"Wolverhampton City Council","http://opendatacommunities.org/id/metropolitan-district-council/wolverhampton","707722","Swift Maintnce Services (1973) Limited","26957","1,253.00","Equipment - R & M","130224997","05/09/2018","Catering","Education Catering - General Overheads","R4003"
"Wolverhampton City Council","http://opendatacommunities.org/id/metropolitan-district-council/wolverhampton","707722","Swift Maintnce Services (1973) Limited","26955","752.00","Equipment - R & M","130224995","05/09/2018","Catering","Education Catering - General Overheads","R4003"
"Wolverhampton City Council","http://opendatacommunities.org/id/metropolitan-district-council/wolverhampton","707722","Swift Maintnce Services (1973) Limited","27276","229.01","Equipment - R & M","130228172","19/09/2018","Catering","Education Catering - General Overheads","R4003"
"Wolverhampton City Council","http://opendatacommunities.org/id/metropolitan-district-council/wolverhampton","707722","Swift Maintnce Services (1973) Limited","27244","3,395.84","Equipment - R & M","130227847","19/09/2018","Cleaning","Cleaning of Buildings - General","R4003"
"Wolverhampton City Council","http://opendatacommunities.org/id/metropolitan-district-council/wolverhampton","707722","Swift Maintnce Services (1973) Limited","27312","2,759.15","Equipment - Catering","130228019","19/09/2018","Catering","Education Catering - General Overheads","R4010"
"Wolverhampton City Council","http://opendatacommunities.org/id/metropolitan-district-council/wolverhampton","707722","Swift Maintnce Services (1973) Limited","26899","47.00","Equipment - R & M","130224608","19/09/2018","Older People Provider Services","Bradley Lodge Resource Centre","R4003"
"Wolverhampton City Council","http://opendatacommunities.org/id/metropolitan-district-council/wolverhampton","707722","Swift Maintnce Services (1973) Limited","27318","176.34","Equipment - R & M","130228174","21/09/2018","Older People Provider Services","Bradley Lodge Resource Centre","R4003"
"Wolverhampton City Council","http://opendatacommunities.org/id/metropolitan-district-council/wolverhampton","707722","Swift Maintnce Services (1973) Limited","26954","7,244.74","Equipment - R & M","130224994","05/09/2018","Catering","Education Catering - General Overheads","R4003"
"Wolverhampton City Council","http://opendatacommunities.org/id/metropolitan-district-council/wolverhampton","707722","Swift Maintnce Services (1973) Limited","27114","104.00","Equipment - R & M","130226970","12/09/2018","Older People Provider Services","Blakenhall Resource Centre","R4003"
"Wolverhampton City Council","http://opendatacommunities.org/id/metropolitan-district-council/wolverhampton","707722","Swift Maintnce Services (1973) Limited","27167","243.42","Equipment - R & M","130227074","12/09/2018","Older People Provider Services","ILS Stores","R4003"
"Wolverhampton City Council","http://opendatacommunities.org/id/metropolitan-district-council/wolverhampton","707722","Swift Maintnce Services (1973) Limited","27274","193.84","Equipment - R & M","130227850","14/09/2018","Leisure Services","WV Active Catering - Central","R4003"
"Wolverhampton City Council","http://opendatacommunities.org/id/metropolitan-district-council/wolverhampton","707722","Swift Maintnce Services (1973) Limited","26956","999.00","Equipment - R & M","130224996","05/09/2018","Catering","Education Catering - General Overheads","R4003"
"Wolverhampton City Council","http://opendatacommunities.org/id/metropolitan-district-council/wolverhampton","707722","Swift Maintnce Services (1973) Limited","26933","1,280.00","Equipment - Catering","130226455","05/09/2018","Adult Education","Caf�","R4010"
"Wolverhampton City Council","http://opendatacommunities.org/id/metropolitan-district-council/wolverhampton","707722","Swift Maintnce Services (1973) Limited","27210","47.00","Equipment - Catering","130227443","07/09/2018","Visitor Economy","Bantock - Tea Rooms","R4010"
"Wolverhampton City Council","http://opendatacommunities.org/id/metropolitan-district-council/wolverhampton","707722","Swift Maintnce Services (1973) Limited","27277","229.01","Equipment - R & M","130228173","19/09/2018","Catering","Education Catering - General Overheads","R4003"
"Wolverhampton City Council","http://opendatacommunities.org/id/metropolitan-district-council/wolverhampton","707722","Swift Maintnce Services (1973) Limited","27328","3,667.19","Equipment - R & M","130228179","19/09/2018","Catering","Education Catering - General Overheads","R4003"
"Wolverhampton City Council","http://opendatacommunities.org/id/metropolitan-district-council/wolverhampton","707722","Swift Maintnce Services (1973) Limited","26864","2,875.00","Equipment - Catering","130224457","05/09/2018","Catering","Education Catering - General Overheads","R4010"
"Wolverhampton City Council","http://opendatacommunities.org/id/metropolitan-district-council/wolverhampton","707722","Swift Maintnce Services (1973) Limited","27164","108.74","Equipment - R & M","130227073","07/09/2018","Older People Provider Services","Bradley Lodge Resource Centre","R4003"
"Wolverhampton City Council","http://opendatacommunities.org/id/metropolitan-district-council/wolverhampton","707722","Swift Maintnce Services (1973) Limited","27272","111.13","Equipment - R & M","130227848","19/09/2018","Older People Provider Services","Bradley Lodge Resource Centre","R4003"
"Wolverhampton City Council","http://opendatacommunities.org/id/metropolitan-district-council/wolverhampton","707722","Swift Maintnce Services (1973) Limited","27215","171.06","Equipment - R & M","130227846","19/09/2018","Learning Disability Provider","Ernest Bold Court","R4003"
"Wolverhampton City Council","http://opendatacommunities.org/id/metropolitan-district-council/wolverhampton","707722","Swift Maintnce Services (1973) Limited","27278","1,012.48","Equipment - R & M","130227852","14/09/2018","Leisure Services","WV Active Catering","R4003"
"Wolverhampton City Council","http://opendatacommunities.org/id/metropolitan-district-council/wolverhampton","707751","T H White Limited","E84709","49.12","Equipment - Purchase","190504319","12/09/2018","Fleet Services","Fleet Management","R4000"
"Wolverhampton City Council","http://opendatacommunities.org/id/metropolitan-district-council/wolverhampton","707751","T H White Limited","638284","35.41","Equipment - Purchase","190510184","26/09/2018","Fleet Services","Fleet Management","R4000"
"Wolverhampton City Council","http://opendatacommunities.org/id/metropolitan-district-council/wolverhampton","707751","T H White Limited","638284","17.14","Equipment - Purchase","190510184","26/09/2018","Fleet Services","Fleet Management","R4000"
"Wolverhampton City Council","http://opendatacommunities.org/id/metropolitan-district-council/wolverhampton","707751","T H White Limited","E84699","7.84","Equipment - Purchase","190502348","05/09/2018","Fleet Services","Fleet Management","R4000"
"Wolverhampton City Council","http://opendatacommunities.org/id/metropolitan-district-council/wolverhampton","707751","T H White Limited","E84699","14.15","Equipment - Purchase","190502348","05/09/2018","Fleet Services","Fleet Management","R4000"
"Wolverhampton City Council","http://opendatacommunities.org/id/metropolitan-district-council/wolverhampton","707751","T H White Limited","E84699","0.74","Equipment - Purchase","190502348","05/09/2018","Fleet Services","Fleet Management","R4000"
"Wolverhampton City Council","http://opendatacommunities.org/id/metropolitan-district-council/wolverhampton","707751","T H White Limited","E84730","16.30","Equipment - Purchase","190502349","05/09/2018","Fleet Services","Fleet Management","R4000"
"Wolverhampton City Council","http://opendatacommunities.org/id/metropolitan-district-council/wolverhampton","707751","T H White Limited","E84730","11.21","Equipment - Purchase","190502349","05/09/2018","Fleet Services","Fleet Management","R4000"
"Wolverhampton City Council","http://opendatacommunities.org/id/metropolitan-district-council/wolverhampton","707751","T H White Limited","E84730","225.13","Equipment - Purchase","190502349","05/09/2018","Fleet Services","Fleet Management","R4000"
"Wolverhampton City Council","http://opendatacommunities.org/id/metropolitan-district-council/wolverhampton","707751","T H White Limited","638858","16.00","Equipment - Purchase","190510185","26/09/2018","Fleet Services","Fleet Management","R4000"
"Wolverhampton City Council","http://opendatacommunities.org/id/metropolitan-district-council/wolverhampton","707751","T H White Limited","638858","27.41","Equipment - Purchase","190510185","26/09/2018","Fleet Services","Fleet Management","R4000"
"Wolverhampton City Council","http://opendatacommunities.org/id/metropolitan-district-council/wolverhampton","707751","T H White Limited","638858","15.52","Equipment - Purchase","190510185","26/09/2018","Fleet Services","Fleet Management","R4000"
"Wolverhampton City Council","http://opendatacommunities.org/id/metropolitan-district-council/wolverhampton","707751","T H White Limited","E84937","6.80","Equipment - Purchase","190505047","14/09/2018","Fleet Services","Fleet Management","R4000"
"Wolverhampton City Council","http://opendatacommunities.org/id/metropolitan-district-council/wolverhampton","707775","Tameside M.B.C.","61889891","32.57","Subscriptions","130226565","19/09/2018","Audit Services","Audit Services","R4701"
"Wolverhampton City Council","http://opendatacommunities.org/id/metropolitan-district-council/wolverhampton","707798","The Children�s Society","ARSERV/00000601","28,463.00","TPP - Social Care Support Services","130227854","26/09/2018","Early Intervention","Emotional Mental Health Wellbeing Service","R5501"
"Wolverhampton City Council","http://opendatacommunities.org/id/metropolitan-district-council/wolverhampton","707840","Telewest Communications/Virgin Media","039257701/002/0917","11.50","Comms - Telephone Rental","190497736","12/09/2018","ICTS","Strategic ICTS (ICT Service Budget)","R4504"
"Wolverhampton City Council","http://opendatacommunities.org/id/metropolitan-district-council/wolverhampton","707840","Telewest Communications/Virgin Media","039597501/001/1017","9.44","Comms - Telephone Rental","190510972","28/09/2018","ICTS","Strategic ICTS (ICT Service Budget)","R4504"
"Wolverhampton City Council","http://opendatacommunities.org/id/metropolitan-district-council/wolverhampton","707840","Telewest Communications/Virgin Media","816601-149","3.84","Comms - Telephone Rental","190510977","28/09/2018","ICTS","Strategic ICTS (ICT Service Budget)","R4504"
"Wolverhampton City Council","http://opendatacommunities.org/id/metropolitan-district-council/wolverhampton","707840","Telewest Communications/Virgin Media","046927101/001/0618","7.50","Comms - Telephone Rental","190511012","28/09/2018","ICTS","Strategic ICTS (ICT Service Budget)","R4504"
"Wolverhampton City Council","http://opendatacommunities.org/id/metropolitan-district-council/wolverhampton","707840","Telewest Communications/Virgin Media","046927101/001/1217","7.50","Comms - Telephone Rental","190511018","28/09/2018","ICTS","Strategic ICTS (ICT Service Budget)","R4504"
"Wolverhampton City Council","http://opendatacommunities.org/id/metropolitan-district-council/wolverhampton","707840","Telewest Communications/Virgin Media","046927101/001/0218","7.50","Comms - Telephone Rental","190511016","28/09/2018","ICTS","Strategic ICTS (ICT Service Budget)","R4504"
"Wolverhampton City Council","http://opendatacommunities.org/id/metropolitan-district-council/wolverhampton","707840","Telewest Communications/Virgin Media","039597501/001/0818","8.08","Comms - Telephone Rental","190510962","28/09/2018","ICTS","Strategic ICTS (ICT Service Budget)","R4504"
"Wolverhampton City Council","http://opendatacommunities.org/id/metropolitan-district-council/wolverhampton","707840","Telewest Communications/Virgin Media","038983201/001/0717","6.00","Comms - Telephone Rental","190511009","28/09/2018","ICTS","Strategic ICTS (ICT Service Budget)","R4504"
"Wolverhampton City Council","http://opendatacommunities.org/id/metropolitan-district-council/wolverhampton","707840","Telewest Communications/Virgin Media","038983201/001/0618","5.75","Comms - Telephone Rental","190510998","28/09/2018","ICTS","Strategic ICTS (ICT Service Budget)","R4504"
"Wolverhampton City Council","http://opendatacommunities.org/id/metropolitan-district-council/wolverhampton","707840","Telewest Communications/Virgin Media","038983201/001/1217","5.75","Comms - Telephone Rental","190511004","28/09/2018","ICTS","Strategic ICTS (ICT Service Budget)","R4504"
"Wolverhampton City Council","http://opendatacommunities.org/id/metropolitan-district-council/wolverhampton","707840","Telewest Communications/Virgin Media","038983201/001/0218","5.75","Comms - Telephone Rental","190511002","28/09/2018","ICTS","Strategic ICTS (ICT Service Budget)","R4504"
"Wolverhampton City Council","http://opendatacommunities.org/id/metropolitan-district-council/wolverhampton","707840","Telewest Communications/Virgin Media","036800401/017/0818","960.00","Comms - Telephone Rental","190510979","28/09/2018","ICTS","Strategic ICTS (ICT Service Budget)","R4504"
"Wolverhampton City Council","http://opendatacommunities.org/id/metropolitan-district-council/wolverhampton","707840","Telewest Communications/Virgin Media","085269401/001/0718","5.75","Comms - Telephone Rental","190510984","28/09/2018","ICTS","Strategic ICTS (ICT Service Budget)","R4504"
"Wolverhampton City Council","http://opendatacommunities.org/id/metropolitan-district-council/wolverhampton","707840","Telewest Communications/Virgin Media","085269401/001/0318","5.75","Comms - Telephone Rental","190510988","28/09/2018","ICTS","Strategic ICTS (ICT Service Budget)","R4504"
"Wolverhampton City Council","http://opendatacommunities.org/id/metropolitan-district-council/wolverhampton","707840","Telewest Communications/Virgin Media","726457501/001/0818","250.00","Comms - Telephone Rental","190510982","28/09/2018","ICTS","Strategic ICTS (ICT Service Budget)","R4504"
"Wolverhampton City Council","http://opendatacommunities.org/id/metropolitan-district-council/wolverhampton","707840","Telewest Communications/Virgin Media","085269401/001/1117","5.75","Comms - Telephone Rental","190510992","28/09/2018","ICTS","Strategic ICTS (ICT Service Budget)","R4504"
"Wolverhampton City Council","http://opendatacommunities.org/id/metropolitan-district-council/wolverhampton","707840","Telewest Communications/Virgin Media","046927101/001/0318","7.50","Comms - Telephone Rental","190511015","28/09/2018","ICTS","Strategic ICTS (ICT Service Budget)","R4504"
"Wolverhampton City Council","http://opendatacommunities.org/id/metropolitan-district-council/wolverhampton","707840","Telewest Communications/Virgin Media","039597501/001/0618","6.51","Comms - Telephone Rental","190510964","28/09/2018","ICTS","Strategic ICTS (ICT Service Budget)","R4504"
"Wolverhampton City Council","http://opendatacommunities.org/id/metropolitan-district-council/wolverhampton","707840","Telewest Communications/Virgin Media","039597501/001/0418","9.12","Comms - Telephone Rental","190510966","28/09/2018","ICTS","Strategic ICTS (ICT Service Budget)","R4504"
"Wolverhampton City Council","http://opendatacommunities.org/id/metropolitan-district-council/wolverhampton","707840","Telewest Communications/Virgin Media","039597501/001/1117","6.83","Comms - Telephone Rental","190510971","28/09/2018","ICTS","Strategic ICTS (ICT Service Budget)","R4504"
"Wolverhampton City Council","http://opendatacommunities.org/id/metropolitan-district-council/wolverhampton","707840","Telewest Communications/Virgin Media","039597501/001/0717","7.92","Comms - Telephone Rental","190510975","28/09/2018","ICTS","Strategic ICTS (ICT Service Budget)","R4504"
"Wolverhampton City Council","http://opendatacommunities.org/id/metropolitan-district-council/wolverhampton","707840","Telewest Communications/Virgin Media","046927101/001/0718","7.50","Comms - Telephone Rental","190511011","28/09/2018","ICTS","Strategic ICTS (ICT Service Budget)","R4504"
"Wolverhampton City Council","http://opendatacommunities.org/id/metropolitan-district-council/wolverhampton","707840","Telewest Communications/Virgin Media","039597501/001/0718","5.75","Comms - Telephone Rental","190510963","28/09/2018","ICTS","Strategic ICTS (ICT Service Budget)","R4504"
"Wolverhampton City Council","http://opendatacommunities.org/id/metropolitan-district-council/wolverhampton","707840","Telewest Communications/Virgin Media","036800401-DASS","49,186.27","Comms - Telephone Rental","190510976","28/09/2018","ICTS","Strategic ICTS (ICT Service Budget)","R4504"
"Wolverhampton City Council","http://opendatacommunities.org/id/metropolitan-district-council/wolverhampton","707840","Telewest Communications/Virgin Media","085269401/001/0418","5.75","Comms - Telephone Rental","190510987","28/09/2018","ICTS","Strategic ICTS (ICT Service Budget)","R4504"
"Wolverhampton City Council","http://opendatacommunities.org/id/metropolitan-district-council/wolverhampton","707840","Telewest Communications/Virgin Media","085269401/001/0818","5.75","Comms - Telephone Rental","190510983","28/09/2018","ICTS","Strategic ICTS (ICT Service Budget)","R4504"
"Wolverhampton City Council","http://opendatacommunities.org/id/metropolitan-district-council/wolverhampton","707840","Telewest Communications/Virgin Media","085269401/001/1217","5.75","Comms - Telephone Rental","190510991","28/09/2018","ICTS","Strategic ICTS (ICT Service Budget)","R4504"
"Wolverhampton City Council","http://opendatacommunities.org/id/metropolitan-district-council/wolverhampton","707840","Telewest Communications/Virgin Media","039597501/001/0318","8.37","Comms - Telephone Rental","190510967","28/09/2018","ICTS","Strategic ICTS (ICT Service Budget)","R4504"
"Wolverhampton City Council","http://opendatacommunities.org/id/metropolitan-district-council/wolverhampton","707840","Telewest Communications/Virgin Media","085269401/001/0717","6.00","Comms - Telephone Rental","190510996","28/09/2018","ICTS","Strategic ICTS (ICT Service Budget)","R4504"
"Wolverhampton City Council","http://opendatacommunities.org/id/metropolitan-district-council/wolverhampton","707840","Telewest Communications/Virgin Media","038983201/001/0318","5.75","Comms - Telephone Rental","190511001","28/09/2018","ICTS","Strategic ICTS (ICT Service Budget)","R4504"
"Wolverhampton City Council","http://opendatacommunities.org/id/metropolitan-district-council/wolverhampton","707840","Telewest Communications/Virgin Media","038983201/001/0917","5.75","Comms - Telephone Rental","190511007","28/09/2018","ICTS","Strategic ICTS (ICT Service Budget)","R4504"
"Wolverhampton City Council","http://opendatacommunities.org/id/metropolitan-district-council/wolverhampton","707840","Telewest Communications/Virgin Media","038569201/501/1117","5.75","Comms - Telephone Rental","190497744","07/09/2018","ICTS","Strategic ICTS (ICT Service Budget)","R4504"
"Wolverhampton City Council","http://opendatacommunities.org/id/metropolitan-district-council/wolverhampton","707840","Telewest Communications/Virgin Media","039597501/001/0917","9.60","Comms - Telephone Rental","190510973","28/09/2018","ICTS","Strategic ICTS (ICT Service Budget)","R4504"
"Wolverhampton City Council","http://opendatacommunities.org/id/metropolitan-district-council/wolverhampton","707840","Telewest Communications/Virgin Media","085269401/001/0817","4.50","Comms - Telephone Rental","190510995","28/09/2018","ICTS","Strategic ICTS (ICT Service Budget)","R4504"
"Wolverhampton City Council","http://opendatacommunities.org/id/metropolitan-district-council/wolverhampton","707840","Telewest Communications/Virgin Media","046927101/001/0518","7.50","Comms - Telephone Rental","190511013","28/09/2018","ICTS","Strategic ICTS (ICT Service Budget)","R4504"
"Wolverhampton City Council","http://opendatacommunities.org/id/metropolitan-district-council/wolverhampton","707840","Telewest Communications/Virgin Media","046927101/001/1117","7.50","Comms - Telephone Rental","190511019","28/09/2018","ICTS","Strategic ICTS (ICT Service Budget)","R4504"
"Wolverhampton City Council","http://opendatacommunities.org/id/metropolitan-district-council/wolverhampton","707840","Telewest Communications/Virgin Media","046927101/001/0118","7.50","Comms - Telephone Rental","190511017","28/09/2018","ICTS","Strategic ICTS (ICT Service Budget)","R4504"
"Wolverhampton City Council","http://opendatacommunities.org/id/metropolitan-district-council/wolverhampton","707840","Telewest Communications/Virgin Media","039597501/001/0218","6.16","Comms - Telephone Rental","190510968","28/09/2018","ICTS","Strategic ICTS (ICT Service Budget)","R4504"
"Wolverhampton City Council","http://opendatacommunities.org/id/metropolitan-district-council/wolverhampton","707840","Telewest Communications/Virgin Media","038983201/001/0118","5.75","Comms - Telephone Rental","190511003","28/09/2018","ICTS","Strategic ICTS (ICT Service Budget)","R4504"
"Wolverhampton City Council","http://opendatacommunities.org/id/metropolitan-district-council/wolverhampton","707840","Telewest Communications/Virgin Media","038983201/001/0518","5.75","Comms - Telephone Rental","190510999","28/09/2018","ICTS","Strategic ICTS (ICT Service Budget)","R4504"
"Wolverhampton City Council","http://opendatacommunities.org/id/metropolitan-district-council/wolverhampton","707840","Telewest Communications/Virgin Media","038983201/001/1117","5.75","Comms - Telephone Rental","190511005","28/09/2018","ICTS","Strategic ICTS (ICT Service Budget)","R4504"
"Wolverhampton City Council","http://opendatacommunities.org/id/metropolitan-district-council/wolverhampton","707840","Telewest Communications/Virgin Media","726457601/001/0818","6,082.78","Comms - Telephone Rental","190510981","28/09/2018","ICTS","Strategic ICTS (ICT Service Budget)","R4504"
"Wolverhampton City Council","http://opendatacommunities.org/id/metropolitan-district-council/wolverhampton","707840","Telewest Communications/Virgin Media","085269401/001/0618","5.75","Comms - Telephone Rental","190510985","28/09/2018","ICTS","Strategic ICTS (ICT Service Budget)","R4504"
"Wolverhampton City Council","http://opendatacommunities.org/id/metropolitan-district-council/wolverhampton","707840","Telewest Communications/Virgin Media","085269401/001/1017","5.75","Comms - Telephone Rental","190510993","28/09/2018","ICTS","Strategic ICTS (ICT Service Budget)","R4504"
"Wolverhampton City Council","http://opendatacommunities.org/id/metropolitan-district-council/wolverhampton","707840","Telewest Communications/Virgin Media","085269401/001/0218","5.75","Comms - Telephone Rental","190510989","28/09/2018","ICTS","Strategic ICTS (ICT Service Budget)","R4504"
"Wolverhampton City Council","http://opendatacommunities.org/id/metropolitan-district-council/wolverhampton","707840","Telewest Communications/Virgin Media","038983201/001/0718","-9.77","Comms - Telephone Rental","190510997","28/09/2018","ICTS","Strategic ICTS (ICT Service Budget)","R4504"
"Wolverhampton City Council","http://opendatacommunities.org/id/metropolitan-district-council/wolverhampton","707840","Telewest Communications/Virgin Media","038569201/501/1217","5.75","Comms - Telephone Rental","190497743","07/09/2018","ICTS","Strategic ICTS (ICT Service Budget)","R4504"
"Wolverhampton City Council","http://opendatacommunities.org/id/metropolitan-district-council/wolverhampton","707840","Telewest Communications/Virgin Media","039597501/001/0518","7.50","Comms - Telephone Rental","190510965","28/09/2018","ICTS","Strategic ICTS (ICT Service Budget)","R4504"
"Wolverhampton City Council","http://opendatacommunities.org/id/metropolitan-district-council/wolverhampton","707840","Telewest Communications/Virgin Media","039597501/001/1217","11.75","Comms - Telephone Rental","190510970","28/09/2018","ICTS","Strategic ICTS (ICT Service Budget)","R4504"
"Wolverhampton City Council","http://opendatacommunities.org/id/metropolitan-district-council/wolverhampton","707840","Telewest Communications/Virgin Media","038983201/001/0817","4.57","Comms - Telephone Rental","190511008","28/09/2018","ICTS","Strategic ICTS (ICT Service Budget)","R4504"
"Wolverhampton City Council","http://opendatacommunities.org/id/metropolitan-district-council/wolverhampton","707840","Telewest Communications/Virgin Media","046927101/001/0418","7.50","Comms - Telephone Rental","190511014","28/09/2018","ICTS","Strategic ICTS (ICT Service Budget)","R4504"
"Wolverhampton City Council","http://opendatacommunities.org/id/metropolitan-district-council/wolverhampton","707840","Telewest Communications/Virgin Media","046927101/001/0818","7.50","Comms - Telephone Rental","190511010","28/09/2018","ICTS","Strategic ICTS (ICT Service Budget)","R4504"
"Wolverhampton City Council","http://opendatacommunities.org/id/metropolitan-district-council/wolverhampton","707840","Telewest Communications/Virgin Media","039597501/001/0817","6.43","Comms - Telephone Rental","190510974","28/09/2018","ICTS","Strategic ICTS (ICT Service Budget)","R4504"
"Wolverhampton City Council","http://opendatacommunities.org/id/metropolitan-district-council/wolverhampton","707840","Telewest Communications/Virgin Media","039597501/001/0118","5.78","Comms - Telephone Rental","190510969","28/09/2018","ICTS","Strategic ICTS (ICT Service Budget)","R4504"
"Wolverhampton City Council","http://opendatacommunities.org/id/metropolitan-district-council/wolverhampton","707840","Telewest Communications/Virgin Media","085269401/001/0118","5.75","Comms - Telephone Rental","190510990","28/09/2018","ICTS","Strategic ICTS (ICT Service Budget)","R4504"
"Wolverhampton City Council","http://opendatacommunities.org/id/metropolitan-district-council/wolverhampton","707840","Telewest Communications/Virgin Media","038983201/001/0418","5.75","Comms - Telephone Rental","190511000","28/09/2018","ICTS","Strategic ICTS (ICT Service Budget)","R4504"
"Wolverhampton City Council","http://opendatacommunities.org/id/metropolitan-district-council/wolverhampton","707840","Telewest Communications/Virgin Media","038983201/001/1017","5.75","Comms - Telephone Rental","190511006","28/09/2018","ICTS","Strategic ICTS (ICT Service Budget)","R4504"
"Wolverhampton City Council","http://opendatacommunities.org/id/metropolitan-district-council/wolverhampton","707840","Telewest Communications/Virgin Media","036800401/013/0818","0.44","Comms - Telephone Rental","190510978","28/09/2018","ICTS","Strategic ICTS (ICT Service Budget)","R4504"
"Wolverhampton City Council","http://opendatacommunities.org/id/metropolitan-district-council/wolverhampton","707840","Telewest Communications/Virgin Media","039186401/001/0818","21,522.93","Comms - Telephone Rental","190510980","28/09/2018","ICTS","Strategic ICTS (ICT Service Budget)","R4504"
"Wolverhampton City Council","http://opendatacommunities.org/id/metropolitan-district-council/wolverhampton","707840","Telewest Communications/Virgin Media","085269401/001/0518","5.75","Comms - Telephone Rental","190510986","28/09/2018","ICTS","Strategic ICTS (ICT Service Budget)","R4504"
"Wolverhampton City Council","http://opendatacommunities.org/id/metropolitan-district-council/wolverhampton","707840","Telewest Communications/Virgin Media","085269401/001/0917","5.75","Comms - Telephone Rental","190510994","28/09/2018","ICTS","Strategic ICTS (ICT Service Budget)","R4504"
"Wolverhampton City Council","http://opendatacommunities.org/id/metropolitan-district-council/wolverhampton","707841","Telford & Wrekin Council","4399942","3,840.00","Services - Professional Fees","130225735","05/09/2018","Planning","Planning","R4400"
"Wolverhampton City Council","http://opendatacommunities.org/id/metropolitan-district-council/wolverhampton","707841","Telford & Wrekin Council","4396729","638.19","Client Transport - SEN","130227612","07/09/2018","Special Educational Needs","Special - Transport","R3043"
"Wolverhampton City Council","http://opendatacommunities.org/id/metropolitan-district-council/wolverhampton","707841","Telford & Wrekin Council","4395103","2,444.00","Client Transport - SEN","130227611","07/09/2018","Special Educational Needs","Special - Transport","R3043"
"Wolverhampton City Council","http://opendatacommunities.org/id/metropolitan-district-council/wolverhampton","707855","Terberg Matec UK Limited","96362312","316.03","Services - Professional Fees","190501395","05/09/2018","Fleet Services","Fleet Management","R4400"
"Wolverhampton City Council","http://opendatacommunities.org/id/metropolitan-district-council/wolverhampton","707855","Terberg Matec UK Limited","96355756","149.20","Equipment - Purchase","190502342","05/09/2018","Fleet Services","Fleet Management","R4000"
"Wolverhampton City Council","http://opendatacommunities.org/id/metropolitan-district-council/wolverhampton","707855","Terberg Matec UK Limited","96362495","40.25","Equipment - Purchase","190508094","19/09/2018","Fleet Services","Fleet Management","R4000"
"Wolverhampton City Council","http://opendatacommunities.org/id/metropolitan-district-council/wolverhampton","707855","Terberg Matec UK Limited","96362495","337.19","Equipment - Purchase","190508094","19/09/2018","Fleet Services","Fleet Management","R4000"
"Wolverhampton City Council","http://opendatacommunities.org/id/metropolitan-district-council/wolverhampton","707855","Terberg Matec UK Limited","96362495","8.32","Equipment - Purchase","190508094","19/09/2018","Fleet Services","Fleet Management","R4000"
"Wolverhampton City Council","http://opendatacommunities.org/id/metropolitan-district-council/wolverhampton","707855","Terberg Matec UK Limited","96362495","24.11","Equipment - Purchase","190508094","19/09/2018","Fleet Services","Fleet Management","R4000"
"Wolverhampton City Council","http://opendatacommunities.org/id/metropolitan-district-council/wolverhampton","707855","Terberg Matec UK Limited","96362495","89.47","Equipment - Purchase","190508094","19/09/2018","Fleet Services","Fleet Management","R4000"
"Wolverhampton City Council","http://opendatacommunities.org/id/metropolitan-district-council/wolverhampton","707855","Terberg Matec UK Limited","96362495","8.51","Equipment - Purchase","190508094","19/09/2018","Fleet Services","Fleet Management","R4000"
"Wolverhampton City Council","http://opendatacommunities.org/id/metropolitan-district-council/wolverhampton","707855","Terberg Matec UK Limited","96362495","25.15","Equipment - Purchase","190508094","19/09/2018","Fleet Services","Fleet Management","R4000"
"Wolverhampton City Council","http://opendatacommunities.org/id/metropolitan-district-council/wolverhampton","707855","Terberg Matec UK Limited","96362495","10.92","Equipment - Purchase","190508094","19/09/2018","Fleet Services","Fleet Management","R4000"
"Wolverhampton City Council","http://opendatacommunities.org/id/metropolitan-district-council/wolverhampton","707858","Tettenhall College","NEF Autumn 2018 INST 1","20,929.50","TPP - Private Nursery Education Funding","190508148","19/09/2018","Early Years","Early Years Universal Entitlement for 3 and 4 Year Olds","R5035"
"Wolverhampton City Council","http://opendatacommunities.org/id/metropolitan-district-council/wolverhampton","707891","The Bigword Interpreting Serv. Limited","INV20201864","82.00","Services - Translation fees","130209060","05/09/2018","Child Protection","CIN/CP Social Work Unit - Area 3","R4406"
"Wolverhampton City Council","http://opendatacommunities.org/id/metropolitan-district-council/wolverhampton","707891","The Bigword Interpreting Serv. Limited","INV593856","21.32","Services - Translation fees","130212109","07/09/2018","Safeguarding","Safeguarding and Quality - Adults","R4406"
"Wolverhampton City Council","http://opendatacommunities.org/id/metropolitan-district-council/wolverhampton","707891","The Bigword Interpreting Serv. Limited","INV20158913","48.00","Services - Translation fees","130223337","12/09/2018","Child Protection","CIN/CP Social Work Unit - Area 7","R4406"
"Wolverhampton City Council","http://opendatacommunities.org/id/metropolitan-district-council/wolverhampton","707891","The Bigword Interpreting Serv. Limited","80019057","407.09","Services - Translation fees","130224610","12/09/2018","Child Protection","CIN/CP Social Work Unit - Area 7","R4406"
"Wolverhampton City Council","http://opendatacommunities.org/id/metropolitan-district-council/wolverhampton","707904","The British Library","139803882","14.65","Books","130227358","26/09/2018","Local Economy","Global Budgets","R4309"
"Wolverhampton City Council","http://opendatacommunities.org/id/metropolitan-district-council/wolverhampton","707938","The Copyright Licensing Agency Limited","609339","475.00","Services - General Licences","130227855","12/09/2018","Visitor Economy","Generic Marketing- NPO ACE WAG","R4402"
"Wolverhampton City Council","http://opendatacommunities.org/id/metropolitan-district-council/wolverhampton","707976","The Grange Residential Home","P185939 14101820180924","2,080.00","TPP - Residential Care - Long Term","190510280","26/09/2018","Older People Care Purchasing","OP Care Purchasing (Spot Placements)","R5400"
"Wolverhampton City Council","http://opendatacommunities.org/id/metropolitan-district-council/wolverhampton","707985","The Headset Company UK Limited","4053414","59.95","Equipment - Purchase","130226971","26/09/2018","Community Financial Support","Welfare Rights","R4000"
"Wolverhampton City Council","http://opendatacommunities.org/id/metropolitan-district-council/wolverhampton","707986","The Helping Hand Company","325835","85.00","Equipment - R & M","130227237","26/09/2018","Older People Provider Services","ILS Stores","R4003"
"Wolverhampton City Council","http://opendatacommunities.org/id/metropolitan-district-council/wolverhampton","707986","The Helping Hand Company","325139","28.11","Equipment - Purchase","130226373","12/09/2018","Environmental Maintenance","Parks - Ranger Service","R4000"
"Wolverhampton City Council","http://opendatacommunities.org/id/metropolitan-district-council/wolverhampton","707986","The Helping Hand Company","325139","35.51","Equipment - Purchase","130226373","12/09/2018","Environmental Maintenance","Parks - Ranger Service","R4000"
"Wolverhampton City Council","http://opendatacommunities.org/id/metropolitan-district-council/wolverhampton","707986","The Helping Hand Company","325139","15.00","Equipment - Purchase","130226373","12/09/2018","Environmental Maintenance","Parks - Ranger Service","R4000"
"Wolverhampton City Council","http://opendatacommunities.org/id/metropolitan-district-council/wolverhampton","708013","The Law Society","SIN10139926","175.00","Training Expenses","130228180","14/09/2018","Director of Governance","Director of Governance","R1650"
"Wolverhampton City Council","http://opendatacommunities.org/id/metropolitan-district-council/wolverhampton","708049","The National Trust","3064876","60.00","Education trips, Holidays, Outings & Activities","130226016","05/09/2018","Adult Education","Language Studies Delivery Area","R4970"
"Wolverhampton City Council","http://opendatacommunities.org/id/metropolitan-district-council/wolverhampton","708072","The Play Inspection Company Limited","32098","300.00","Training Expenses","130227075","26/09/2018","Public Service Reform","Centralised Training","R1650"
"Wolverhampton City Council","http://opendatacommunities.org/id/metropolitan-district-council/wolverhampton","708082","The Queen Victoria Hotel","P18464920180911","588.00","TPP - Accommodation","190503989","12/09/2018","Community Financial Support","Destitute Plus","R5603"
"Wolverhampton City Council","http://opendatacommunities.org/id/metropolitan-district-council/wolverhampton","708082","The Queen Victoria Hotel","01383","2,590.00","Section 17","130229416","26/09/2018","Child Protection","CIN/CP Social Work Unit - Area 4","R6403"
"Wolverhampton City Council","http://opendatacommunities.org/id/metropolitan-district-council/wolverhampton","708090","The Refugee And Migrant Centre Limited","1023","5,985.00","Training Expenses","130228185","19/09/2018","Local Economy","Universal Credit","R1650"
"Wolverhampton City Council","http://opendatacommunities.org/id/metropolitan-district-council/wolverhampton","708090","The Refugee And Migrant Centre Limited","973","-14,817.00","Grant Payments","130213572","14/09/2018","Looked After Children","Supporting Emotional and Wellbeing of UASC","R4700"
"Wolverhampton City Council","http://opendatacommunities.org/id/metropolitan-district-council/wolverhampton","708090","The Refugee And Migrant Centre Limited","1021","10,000.00","Grant Payments","130228183","19/09/2018","Skills","Job Change","R4700"
"Wolverhampton City Council","http://opendatacommunities.org/id/metropolitan-district-council/wolverhampton","708090","The Refugee And Migrant Centre Limited","1013","22,500.00","TPP - Social Care Support Services","130228181","19/09/2018","Housing Revenue Account","Single non statutory homelessness","R5501"
"Wolverhampton City Council","http://opendatacommunities.org/id/metropolitan-district-council/wolverhampton","708090","The Refugee And Migrant Centre Limited","1016","16,666.33","TPP - Social Care Support Services","130228182","14/09/2018","Housing Revenue Account","Single non statutory homelessness","R5501"
"Wolverhampton City Council","http://opendatacommunities.org/id/metropolitan-district-council/wolverhampton","708090","The Refugee And Migrant Centre Limited","1022","3,925.80","Training Expenses","130228184","19/09/2018","Local Economy","Universal Credit","R1650"
"Wolverhampton City Council","http://opendatacommunities.org/id/metropolitan-district-council/wolverhampton","708090","The Refugee And Migrant Centre Limited","1015","28,735.30","Training Expenses","130228479","14/09/2018","Skills","IMPACT","R1650"
"Wolverhampton City Council","http://opendatacommunities.org/id/metropolitan-district-council/wolverhampton","708090","The Refugee And Migrant Centre Limited","1024","5,087.25","Training Expenses","130228186","19/09/2018","Local Economy","Universal Credit","R1650"
"Wolverhampton City Council","http://opendatacommunities.org/id/metropolitan-district-council/wolverhampton","708099","The Royal Wolverhampton Hospitals","0000220674","1,364.00","TPP - Nursing Care - Long Term","130227078","14/09/2018","Older People Care Purchasing","OP Care Purchasing (Spot Placements)","R5410"
"Wolverhampton City Council","http://opendatacommunities.org/id/metropolitan-district-council/wolverhampton","708099","The Royal Wolverhampton Hospitals","0000220844","3,882.92","TPP - Payments to Local Authorities","130227447","14/09/2018","Adults Assessment & Care Management West","Hospital Team","R5100"
"Wolverhampton City Council","http://opendatacommunities.org/id/metropolitan-district-council/wolverhampton","708099","The Royal Wolverhampton Hospitals","0000220672","2,724.00","TPP - Nursing Care - Long Term","130227076","14/09/2018","Older People Care Purchasing","OP Care Purchasing (Spot Placements)","R5410"
"Wolverhampton City Council","http://opendatacommunities.org/id/metropolitan-district-council/wolverhampton","708099","The Royal Wolverhampton Hospitals","0000220673","2,993.00","TPP - Nursing Care - Long Term","130227077","14/09/2018","Older People Care Purchasing","OP Care Purchasing (Spot Placements)","R5410"
"Wolverhampton City Council","http://opendatacommunities.org/id/metropolitan-district-council/wolverhampton","708099","The Royal Wolverhampton Hospitals","0000219149","486,000.00","TPP - Public Health Contracts","130221662","05/09/2018","Starting and Developing Well","Health Visiting 0-5 Year Olds","R5060"
"Wolverhampton City Council","http://opendatacommunities.org/id/metropolitan-district-council/wolverhampton","708099","The Royal Wolverhampton Hospitals","0000220843","2,517.17","TPP - Payments to Local Authorities","130227446","14/09/2018","Adults Assessment & Care Management West","Hospital Team","R5100"
"Wolverhampton City Council","http://opendatacommunities.org/id/metropolitan-district-council/wolverhampton","708101","The Royal Wolverhampton School","P18420020180907","143.70","TPP - Placement Foster Care Inhouse","190503406","12/09/2018","Looked After Children","LAC Transitions Team","R5601"
"Wolverhampton City Council","http://opendatacommunities.org/id/metropolitan-district-council/wolverhampton","708101","The Royal Wolverhampton School","1515","5,810.33","TPP - Independent Schools","130227615","07/09/2018","Special Educational Needs","SEN Education OOC","R5036"
"Wolverhampton City Council","http://opendatacommunities.org/id/metropolitan-district-council/wolverhampton","708101","The Royal Wolverhampton School","1514","3,095.00","TPP - Independent Schools","130228590","19/09/2018","Special Educational Needs","SEN Education OOC","R5036"
"Wolverhampton City Council","http://opendatacommunities.org/id/metropolitan-district-council/wolverhampton","708101","The Royal Wolverhampton School","1507","3,095.00","TPP - Independent Schools","130227858","12/09/2018","Special Educational Needs","SEN Education OOC","R5036"
"Wolverhampton City Council","http://opendatacommunities.org/id/metropolitan-district-council/wolverhampton","708101","The Royal Wolverhampton School","1511","3,095.00","TPP - Independent Schools","130228588","19/09/2018","Special Educational Needs","SEN Education OOC","R5036"
"Wolverhampton City Council","http://opendatacommunities.org/id/metropolitan-district-council/wolverhampton","708101","The Royal Wolverhampton School","1508","4,190.00","TPP - Independent Schools","130227613","07/09/2018","Special Educational Needs","SEN Education OOC","R5036"
"Wolverhampton City Council","http://opendatacommunities.org/id/metropolitan-district-council/wolverhampton","708101","The Royal Wolverhampton School","1513","4,190.00","TPP - Independent Schools","130227859","12/09/2018","Special Educational Needs","SEN Education OOC","R5036"
"Wolverhampton City Council","http://opendatacommunities.org/id/metropolitan-district-council/wolverhampton","708101","The Royal Wolverhampton School","P18561820180921","143.70","TPP - Placement Foster Care Inhouse","190509332","26/09/2018","Looked After Children","LAC Transitions Team","R5601"
"Wolverhampton City Council","http://opendatacommunities.org/id/metropolitan-district-council/wolverhampton","708101","The Royal Wolverhampton School","P18495520180914","143.70","TPP - Placement Foster Care Inhouse","190505687","19/09/2018","Looked After Children","LAC Transitions Team","R5601"
"Wolverhampton City Council","http://opendatacommunities.org/id/metropolitan-district-council/wolverhampton","708101","The Royal Wolverhampton School","1510","3,095.00","TPP - Independent Schools","130228587","19/09/2018","Special Educational Needs","SEN Education OOC","R5036"
"Wolverhampton City Council","http://opendatacommunities.org/id/metropolitan-district-council/wolverhampton","708101","The Royal Wolverhampton School","1509","3,095.00","TPP - Independent Schools","130227614","07/09/2018","Special Educational Needs","SEN Education OOC","R5036"
"Wolverhampton City Council","http://opendatacommunities.org/id/metropolitan-district-council/wolverhampton","708101","The Royal Wolverhampton School","1505","4,190.00","TPP - Independent Schools","130227857","12/09/2018","Special Educational Needs","SEN Education OOC","R5036"
"Wolverhampton City Council","http://opendatacommunities.org/id/metropolitan-district-council/wolverhampton","708101","The Royal Wolverhampton School","P18358120180831","143.70","TPP - Placement Foster Care Inhouse","190500974","05/09/2018","Looked After Children","LAC Transitions Team","R5601"
"Wolverhampton City Council","http://opendatacommunities.org/id/metropolitan-district-council/wolverhampton","708101","The Royal Wolverhampton School","1504","3,095.00","TPP - Independent Schools","130228586","19/09/2018","Special Educational Needs","SEN Education OOC","R5036"
"Wolverhampton City Council","http://opendatacommunities.org/id/metropolitan-district-council/wolverhampton","708101","The Royal Wolverhampton School","1512","5,810.33","TPP - Independent Schools","130228589","19/09/2018","Special Educational Needs","SEN Education OOC","R5036"
"Wolverhampton City Council","http://opendatacommunities.org/id/metropolitan-district-council/wolverhampton","708121","The Stationery Office Limited","28467930","18.38","Books","130225348","05/09/2018","Local Economy","Global Budgets","R4309"
"Wolverhampton City Council","http://opendatacommunities.org/id/metropolitan-district-council/wolverhampton","708134","The Terrence Higgins Trust","29003203","4,166.67","TPP - Home Care","130228338","26/09/2018","Strategic Commissioning","Terence Higgins Trust","R5420"
"Wolverhampton City Council","http://opendatacommunities.org/id/metropolitan-district-council/wolverhampton","708162","Theraposture Limited","138919","1,750.00","Equipment - R & M","130227079","05/09/2018","Independent Living Service","Independent Living Service","R4003"
"Wolverhampton City Council","http://opendatacommunities.org/id/metropolitan-district-council/wolverhampton","708169","Thomas Fattorini Limited","I233358","311.25","Services - Professional Fees","130229305","26/09/2018","Public Service Reform","Mayoral Expenses","R4400"
"Wolverhampton City Council","http://opendatacommunities.org/id/metropolitan-district-council/wolverhampton","708176","Thompson Avc Limited","36372","2,604.14","R&M - Departmental planned (external)","130226459","12/09/2018","Facilities Management","Caretakers Community Centre","R2001"
"Wolverhampton City Council","http://opendatacommunities.org/id/metropolitan-district-council/wolverhampton","708176","Thompson Avc Limited","36393","2,511.00","Equipment - Purchase","130227081","05/09/2018","Waste and Recycling Service","Waste Collection and Recycling Service - General","R4000"
"Wolverhampton City Council","http://opendatacommunities.org/id/metropolitan-district-council/wolverhampton","708176","Thompson Avc Limited","36392","3,718.00","Equipment - Purchase","130227080","05/09/2018","Waste and Recycling Service","Waste Collection and Recycling Service - General","R4000"
"Wolverhampton City Council","http://opendatacommunities.org/id/metropolitan-district-council/wolverhampton","708176","Thompson Avc Limited","Grant No. 017/17r","9,000.00","Grant Payments","190503501","12/09/2018","Enterprise","Black Country Gold","R4700"
"Wolverhampton City Council","http://opendatacommunities.org/id/metropolitan-district-council/wolverhampton","708176","Thompson Avc Limited","36388","348.00","R&M - Departmental planned (external)","130226855","05/09/2018","Markets","Wholesale Market Facilities Management","R2001"
"Wolverhampton City Council","http://opendatacommunities.org/id/metropolitan-district-council/wolverhampton","708176","Thompson Avc Limited","36369","6,374.00","Equipment - Purchase","130226458","21/09/2018","ICTS","Strategic ICTS (ICT Service Budget)","R4000"
"Wolverhampton City Council","http://opendatacommunities.org/id/metropolitan-district-council/wolverhampton","708176","Thompson Avc Limited","36394","4,197.00","Equipment - Purchase","130227082","05/09/2018","Waste and Recycling Service","Waste Collection and Recycling Service - General","R4000"
"Wolverhampton City Council","http://opendatacommunities.org/id/metropolitan-district-council/wolverhampton","708176","Thompson Avc Limited","36568","8,044.00","Services - Consultants","130228340","19/09/2018","Learning Disability Provider","Learning Disabilities Management","R4404"
"Wolverhampton City Council","http://opendatacommunities.org/id/metropolitan-district-council/wolverhampton","708176","Thompson Avc Limited","36561","11,737.80","Equipment - Purchase","130228339","21/09/2018","ICTS","Strategic ICTS (ICT Service Budget)","R4000"
"Wolverhampton City Council","http://opendatacommunities.org/id/metropolitan-district-council/wolverhampton","708180","Thornes Legal Limited","Ref: BT.PW/2018/1030-SGO.Wwright","215.00","Services - Professional Fees","190510392","26/09/2018","Legal Services","Centralised External Legal Costs","R4400"
"Wolverhampton City Council","http://opendatacommunities.org/id/metropolitan-district-council/wolverhampton","708180","Thornes Legal Limited","PW/2018/1030-SGO.Wwright","250.00","Services - Professional Fees","190510393","26/09/2018","Legal Services","Centralised External Legal Costs","R4400"
"Wolverhampton City Council","http://opendatacommunities.org/id/metropolitan-district-council/wolverhampton","708185","Three Pines Building Co Limited","16/0846/DFG","5,013.98","Grants paid out to other organisations","190509072","21/09/2018","-","Disabled Facilities Grants","C5011"
"Wolverhampton City Council","http://opendatacommunities.org/id/metropolitan-district-council/wolverhampton","708198","Time Right Limited","SIN098229","37.50","Services - Fees and Charges","130227616","26/09/2018","Environmental Maintenance","Ground Maintenance East","R4401"
"Wolverhampton City Council","http://opendatacommunities.org/id/metropolitan-district-council/wolverhampton","708202","TES Global Ltd","INVTES00079390","690.37","Staff Advertising Costs","130228593","19/09/2018","The Hub","Central Advertising","R1700"
"Wolverhampton City Council","http://opendatacommunities.org/id/metropolitan-district-council/wolverhampton","708202","TES Global Ltd","INVTES00077973","690.37","Staff Advertising Costs","130228592","19/09/2018","The Hub","Central Advertising","R1700"
"Wolverhampton City Council","http://opendatacommunities.org/id/metropolitan-district-council/wolverhampton","708217","Tlc College Neighbourhood Nursery","NEF Autumn 2018 INST 1","23,024.25","TPP - Private Nursery Education Funding","190508148","19/09/2018","Early Years","Early Years Universal Entitlement for 3 and 4 Year Olds","R5035"
"Wolverhampton City Council","http://opendatacommunities.org/id/metropolitan-district-council/wolverhampton","708217","Tlc College Neighbourhood Nursery","TFT Autumn 2018 Inst 1","11,884.32","TPP - Private Nursery Education Funding","190508160","19/09/2018","Early Years","Early Years Entitlement Funding for Disadvantaged 2 Year Olds","R5035"
"Wolverhampton City Council","http://opendatacommunities.org/id/metropolitan-district-council/wolverhampton","708251","Total Gas & Power Limited","176830582","238.33","Gas","190507747","19/09/2018","Housing Revenue Account","Hostels / Outreach","R2101"
"Wolverhampton City Council","http://opendatacommunities.org/id/metropolitan-district-council/wolverhampton","708251","Total Gas & Power Limited","176830549","140.27","Gas","190507751","19/09/2018","Corporate Asset Management","Central Utilities to Recharge","R2101"
"Wolverhampton City Council","http://opendatacommunities.org/id/metropolitan-district-council/wolverhampton","708251","Total Gas & Power Limited","176830516","34.72","Gas","190507754","19/09/2018","Corporate Asset Management","Central Utilities to Recharge","R2101"
"Wolverhampton City Council","http://opendatacommunities.org/id/metropolitan-district-council/wolverhampton","708251","Total Gas & Power Limited","176830791","352.91","Gas","190507724","19/09/2018","Corporate Asset Management","Central Utilities to Recharge","R2101"
"Wolverhampton City Council","http://opendatacommunities.org/id/metropolitan-district-council/wolverhampton","708251","Total Gas & Power Limited","176830835","133.95","Gas","190507720","19/09/2018","Corporate Asset Management","Central Utilities to Recharge","R2101"
"Wolverhampton City Council","http://opendatacommunities.org/id/metropolitan-district-council/wolverhampton","708251","Total Gas & Power Limited","176830274","773.01","Gas","190507782","19/09/2018","Schools","Springdale Primary School","R2101"
"Wolverhampton City Council","http://opendatacommunities.org/id/metropolitan-district-council/wolverhampton","708251","Total Gas & Power Limited","176830120","139.91","Gas","190507797","19/09/2018","Corporate Asset Management","Central Utilities to Recharge","R2101"
"Wolverhampton City Council","http://opendatacommunities.org/id/metropolitan-district-council/wolverhampton","708251","Total Gas & Power Limited","176830230","327.74","Gas","190507786","19/09/2018","Corporate Asset Management","Central Utilities to Recharge","R2101"
"Wolverhampton City Council","http://opendatacommunities.org/id/metropolitan-district-council/wolverhampton","708251","Total Gas & Power Limited","170052866C","-271.83","Gas","190507821","19/09/2018","Corporate Asset Management","Central Utilities to Recharge","R2101"
"Wolverhampton City Council","http://opendatacommunities.org/id/metropolitan-district-council/wolverhampton","708251","Total Gas & Power Limited","176669443","34.72","Gas","190507598","19/09/2018","Corporate Asset Management","Central Utilities to Recharge","R2101"
"Wolverhampton City Council","http://opendatacommunities.org/id/metropolitan-district-council/wolverhampton","708251","Total Gas & Power Limited","176669476","35.23","Gas","190507604","19/09/2018","Corporate Asset Management","Central Utilities to Recharge","R2101"
"Wolverhampton City Council","http://opendatacommunities.org/id/metropolitan-district-council/wolverhampton","708251","Total Gas & Power Limited","176668739","34.72","Gas","190507679","19/09/2018","Corporate Asset Management","Central Utilities to Recharge","R2101"
"Wolverhampton City Council","http://opendatacommunities.org/id/metropolitan-district-council/wolverhampton","708251","Total Gas & Power Limited","176668816","35.99","Gas","190507665","19/09/2018","Corporate Asset Management","Central Utilities to Recharge","R2101"
"Wolverhampton City Council","http://opendatacommunities.org/id/metropolitan-district-council/wolverhampton","708251","Total Gas & Power Limited","176830296","139.91","Gas","190507779","19/09/2018","Schools","St Michael�s Church of England Primary School","R2101"
"Wolverhampton City Council","http://opendatacommunities.org/id/metropolitan-district-council/wolverhampton","708251","Total Gas & Power Limited","176668629","39.33","Gas","190507691","19/09/2018","Corporate Asset Management","Central Utilities to Recharge","R2101"
"Wolverhampton City Council","http://opendatacommunities.org/id/metropolitan-district-council/wolverhampton","708251","Total Gas & Power Limited","176829999","196.62","Gas","190507809","19/09/2018","Schools","Bilston Church of England Primary School","R2101"
"Wolverhampton City Council","http://opendatacommunities.org/id/metropolitan-district-council/wolverhampton","708251","Total Gas & Power Limited","176830571","193.10","Gas","190507748","19/09/2018","Corporate Asset Management","Central Utilities to Recharge","R2101"
"Wolverhampton City Council","http://opendatacommunities.org/id/metropolitan-district-council/wolverhampton","708251","Total Gas & Power Limited","176830550","169.71","Gas","190507750","19/09/2018","Corporate Asset Management","Central Utilities to Recharge","R2101"
"Wolverhampton City Council","http://opendatacommunities.org/id/metropolitan-district-council/wolverhampton","708251","Total Gas & Power Limited","176830472","279.83","Gas","190507760","19/09/2018","Corporate Asset Management","Central Utilities to Recharge","R2101"
"Wolverhampton City Council","http://opendatacommunities.org/id/metropolitan-district-council/wolverhampton","708251","Total Gas & Power Limited","176830527","47.84","Gas","190507753","19/09/2018","Facilities Management","Management of Vacant Properties","R2101"
"Wolverhampton City Council","http://opendatacommunities.org/id/metropolitan-district-council/wolverhampton","708251","Total Gas & Power Limited","176830747","74.20","Gas","190507729","19/09/2018","Corporate Asset Management","Central Utilities to Recharge","R2101"
"Wolverhampton City Council","http://opendatacommunities.org/id/metropolitan-district-council/wolverhampton","708251","Total Gas & Power Limited","176830318","197.36","Gas","190507777","19/09/2018","Schools","St Anthony�s Catholic Primary School","R2101"
"Wolverhampton City Council","http://opendatacommunities.org/id/metropolitan-district-council/wolverhampton","708251","Total Gas & Power Limited","176830714","174.40","Gas","190507732","19/09/2018","Corporate Asset Management","Central Utilities to Recharge","R2101"
"Wolverhampton City Council","http://opendatacommunities.org/id/metropolitan-district-council/wolverhampton","708251","Total Gas & Power Limited","176668365","164.11","Gas","190507717","19/09/2018","Schools","Holy Trinity Catholic Primary School","R2101"
"Wolverhampton City Council","http://opendatacommunities.org/id/metropolitan-district-council/wolverhampton","708251","Total Gas & Power Limited","174635587","47.84","Gas","190507814","19/09/2018","Facilities Management","Management of Vacant Properties","R2101"
"Wolverhampton City Council","http://opendatacommunities.org/id/metropolitan-district-council/wolverhampton","708251","Total Gas & Power Limited","176829955","154.36","Gas","190507813","19/09/2018","Schools","Merridale Primary School","R2101"
"Wolverhampton City Council","http://opendatacommunities.org/id/metropolitan-district-council/wolverhampton","708251","Total Gas & Power Limited","176668981","50.91","Gas","190507648","19/09/2018","Schools","Penn Hall Special School","R2101"
"Wolverhampton City Council","http://opendatacommunities.org/id/metropolitan-district-council/wolverhampton","708251","Total Gas & Power Limited","176669080","59.06","Gas","190507639","19/09/2018","Schools","Loxdale Primary School","R2101"
"Wolverhampton City Council","http://opendatacommunities.org/id/metropolitan-district-council/wolverhampton","708251","Total Gas & Power Limited","176669025","34.72","Gas","190507644","19/09/2018","Corporate Asset Management","Central Utilities to Recharge","R2101"
"Wolverhampton City Council","http://opendatacommunities.org/id/metropolitan-district-council/wolverhampton","708251","Total Gas & Power Limited","176668630","49.38","Gas","190507690","19/09/2018","Schools","Fallings Park Primary School","R2101"
"Wolverhampton City Council","http://opendatacommunities.org/id/metropolitan-district-council/wolverhampton","708251","Total Gas & Power Limited","176668618","55.71","Gas","190507692","19/09/2018","Schools","Ashmore Park Nursery","R2101"
"Wolverhampton City Council","http://opendatacommunities.org/id/metropolitan-district-council/wolverhampton","708251","Total Gas & Power Limited","176668574","74.48","Gas","190507696","19/09/2018","Corporate Asset Management","Central Utilities to Recharge","R2101"
"Wolverhampton City Council","http://opendatacommunities.org/id/metropolitan-district-council/wolverhampton","708251","Total Gas & Power Limited","175128827","39.39","Electricity","190502264","05/09/2018","Schools","Merridale Primary School","R2100"
"Wolverhampton City Council","http://opendatacommunities.org/id/metropolitan-district-council/wolverhampton","708251","Total Gas & Power Limited","176669366","188.67","Gas","190507612","19/09/2018","Corporate Asset Management","Central Utilities to Recharge","R2101"
"Wolverhampton City Council","http://opendatacommunities.org/id/metropolitan-district-council/wolverhampton","708251","Total Gas & Power Limited","175146031","421.57","Electricity","190502119","05/09/2018","Schools","St Thomas� Church of England Primary School","R2100"
"Wolverhampton City Council","http://opendatacommunities.org/id/metropolitan-district-council/wolverhampton","708251","Total Gas & Power Limited","175183134","480.44","Electricity","190502150","05/09/2018","Schools","Uplands Junior School","R2100"
"Wolverhampton City Council","http://opendatacommunities.org/id/metropolitan-district-council/wolverhampton","708251","Total Gas & Power Limited","175182397","66.82","Electricity","190502134","05/09/2018","Corporate Asset Management","Central Utilities to Recharge","R2100"
"Wolverhampton City Council","http://opendatacommunities.org/id/metropolitan-district-council/wolverhampton","708251","Total Gas & Power Limited","175076082","60.04","Electricity","190502240","05/09/2018","Operation & Maintenance of Existing Network","Rechargeable Works to Capital - Contract Annual Costs","R2100"
"Wolverhampton City Council","http://opendatacommunities.org/id/metropolitan-district-council/wolverhampton","708251","Total Gas & Power Limited","175076390","65.35","Electricity","190502244","05/09/2018","Corporate Asset Management","Central Utilities to Recharge","R2100"
"Wolverhampton City Council","http://opendatacommunities.org/id/metropolitan-district-council/wolverhampton","708251","Total Gas & Power Limited","175076093","43.10","Electricity","190502241","05/09/2018","Corporate Asset Management","Central Utilities to Recharge","R2100"
"Wolverhampton City Council","http://opendatacommunities.org/id/metropolitan-district-council/wolverhampton","708251","Total Gas & Power Limited","175076522","101.37","Electricity","190502247","05/09/2018","Corporate Asset Management","Central Utilities to Recharge","R2100"
"Wolverhampton City Council","http://opendatacommunities.org/id/metropolitan-district-council/wolverhampton","708251","Total Gas & Power Limited","175239861","721.10","Electricity","190502059","05/09/2018","Schools","Dovecotes Primary School","R2100"
"Wolverhampton City Council","http://opendatacommunities.org/id/metropolitan-district-council/wolverhampton","708251","Total Gas & Power Limited","176669333","168.95","Gas","190507615","19/09/2018","Corporate Asset Management","Central Utilities to Recharge","R2101"
"Wolverhampton City Council","http://opendatacommunities.org/id/metropolitan-district-council/wolverhampton","708251","Total Gas & Power Limited","175239982","641.97","Electricity","190502064","05/09/2018","Schools","St Anthony�s Catholic Primary School","R2100"
"Wolverhampton City Council","http://opendatacommunities.org/id/metropolitan-district-council/wolverhampton","708251","Total Gas & Power Limited","175239652","173.99","Electricity","190502050","05/09/2018","Corporate Asset Management","Central Utilities to Recharge","R2100"
"Wolverhampton City Council","http://opendatacommunities.org/id/metropolitan-district-council/wolverhampton","708251","Total Gas & Power Limited","175145415","195.71","Electricity","190502109","05/09/2018","Corporate Asset Management","Central Utilities to Recharge","R2100"
"Wolverhampton City Council","http://opendatacommunities.org/id/metropolitan-district-council/wolverhampton","708251","Total Gas & Power Limited","175240004","991.79","Electricity","190502066","05/09/2018","Schools","Rakegate Primary School","R2100"
"Wolverhampton City Council","http://opendatacommunities.org/id/metropolitan-district-council/wolverhampton","708251","Total Gas & Power Limited","175240323","895.75","Electricity","190502086","05/09/2018","Schools","Bilston Church of England Primary School","R2100"
"Wolverhampton City Council","http://opendatacommunities.org/id/metropolitan-district-council/wolverhampton","708251","Total Gas & Power Limited","175240026","150.73","Electricity","190502068","05/09/2018","Facilities Management","Management of Vacant Properties","R2100"
"Wolverhampton City Council","http://opendatacommunities.org/id/metropolitan-district-council/wolverhampton","708251","Total Gas & Power Limited","175144524","121.02","Electricity","190502096","05/09/2018","Corporate Asset Management","Central Utilities to Recharge","R2100"
"Wolverhampton City Council","http://opendatacommunities.org/id/metropolitan-district-council/wolverhampton","708251","Total Gas & Power Limited","175144865","140.50","Electricity","190502100","05/09/2018","Corporate Asset Management","Central Utilities to Recharge","R2100"
"Wolverhampton City Council","http://opendatacommunities.org/id/metropolitan-district-council/wolverhampton","708251","Total Gas & Power Limited","175182265","572.83","Electricity","190502131","05/09/2018","Schools","Woodthorne Primary School","R2100"
"Wolverhampton City Council","http://opendatacommunities.org/id/metropolitan-district-council/wolverhampton","708251","Total Gas & Power Limited","175183750","634.84","Electricity","190502169","05/09/2018","Schools","Wodensfield Primary School","R2100"
"Wolverhampton City Council","http://opendatacommunities.org/id/metropolitan-district-council/wolverhampton","708251","Total Gas & Power Limited","175177986","182.28","Electricity","190502187","05/09/2018","Corporate Asset Management","Central Utilities to Recharge","R2100"
"Wolverhampton City Council","http://opendatacommunities.org/id/metropolitan-district-council/wolverhampton","708251","Total Gas & Power Limited","175178459","513.98","Electricity","190502195","05/09/2018","Corporate Asset Management","Central Utilities to Recharge","R2100"
"Wolverhampton City Council","http://opendatacommunities.org/id/metropolitan-district-council/wolverhampton","708251","Total Gas & Power Limited","170341540","978.20","Gas","190507815","19/09/2018","Corporate Asset Management","Central Utilities to Recharge","R2101"
"Wolverhampton City Council","http://opendatacommunities.org/id/metropolitan-district-council/wolverhampton","708251","Total Gas & Power Limited","174634817C","-133.65","Gas","190507824","19/09/2018","Corporate Asset Management","Central Utilities to Recharge","R2101"
"Wolverhampton City Council","http://opendatacommunities.org/id/metropolitan-district-council/wolverhampton","708251","Total Gas & Power Limited","174610617C","-52.73","Gas","190507595","19/09/2018","Corporate Asset Management","Central Utilities to Recharge","R2101"
"Wolverhampton City Council","http://opendatacommunities.org/id/metropolitan-district-council/wolverhampton","708251","Total Gas & Power Limited","170088682C","-46.30","Gas","190507588","19/09/2018","Facilities Management","Management of Vacant Properties","R2101"
"Wolverhampton City Council","http://opendatacommunities.org/id/metropolitan-district-council/wolverhampton","708251","Total Gas & Power Limited","176669399","150.45","Gas","190507609","19/09/2018","Schools","Eastfield Nursery","R2101"
"Wolverhampton City Council","http://opendatacommunities.org/id/metropolitan-district-council/wolverhampton","708251","Total Gas & Power Limited","176669113","47.84","Gas","190507636","19/09/2018","Corporate Asset Management","Central Utilities to Recharge","R2101"
"Wolverhampton City Council","http://opendatacommunities.org/id/metropolitan-district-council/wolverhampton","708251","Total Gas & Power Limited","176513804","207.78","Electricity","190508638","21/09/2018","Corporate Asset Management","Central Utilities to Recharge","R2100"
"Wolverhampton City Council","http://opendatacommunities.org/id/metropolitan-district-council/wolverhampton","708251","Total Gas & Power Limited","176277612","401.22","Electricity","190508750","21/09/2018","Corporate Asset Management","Central Utilities to Recharge","R2100"
"Wolverhampton City Council","http://opendatacommunities.org/id/metropolitan-district-council/wolverhampton","708251","Total Gas & Power Limited","173504941C","-19.08","Electricity","190508761","21/09/2018","Corporate Asset Management","Central Utilities to Recharge","R2100"
"Wolverhampton City Council","http://opendatacommunities.org/id/metropolitan-district-council/wolverhampton","708251","Total Gas & Power Limited","176453777","201.32","Electricity","190508538","21/09/2018","Corporate Asset Management","Central Utilities to Recharge","R2100"
"Wolverhampton City Council","http://opendatacommunities.org/id/metropolitan-district-council/wolverhampton","708251","Total Gas & Power Limited","175129366","5,412.36","Electricity","190502282","05/09/2018","Corporate Asset Management","Central Utilities to Recharge","R2100"
"Wolverhampton City Council","http://opendatacommunities.org/id/metropolitan-district-council/wolverhampton","708251","Total Gas & Power Limited","173505800","53.23","Electricity","190502298","05/09/2018","Schools","Trinity Church of England Primary School","R2100"
"Wolverhampton City Council","http://opendatacommunities.org/id/metropolitan-district-council/wolverhampton","708251","Total Gas & Power Limited","176829988","211.07","Gas","190507810","19/09/2018","Corporate Asset Management","Central Utilities to Recharge","R2101"
"Wolverhampton City Council","http://opendatacommunities.org/id/metropolitan-district-council/wolverhampton","708251","Total Gas & Power Limited","175239608","868.26","Electricity","190502046","05/09/2018","Schools","St Andrews Church of England Primary School","R2100"
"Wolverhampton City Council","http://opendatacommunities.org/id/metropolitan-district-council/wolverhampton","708251","Total Gas & Power Limited","175145580","48.93","Electricity","190502112","05/09/2018","Corporate Asset Management","Central Utilities to Recharge","R2100"
"Wolverhampton City Council","http://opendatacommunities.org/id/metropolitan-district-council/wolverhampton","708251","Total Gas & Power Limited","175129564","797.72","Electricity","190502051","05/09/2018","Corporate Asset Management","Central Utilities to Recharge","R2100"
"Wolverhampton City Council","http://opendatacommunities.org/id/metropolitan-district-council/wolverhampton","708251","Total Gas & Power Limited","175240345","34.17","Electricity","190502088","05/09/2018","Corporate Asset Management","Central Utilities to Recharge","R2100"
"Wolverhampton City Council","http://opendatacommunities.org/id/metropolitan-district-council/wolverhampton","708251","Total Gas & Power Limited","176830076","527.70","Gas","190507801","19/09/2018","Corporate Asset Management","Central Utilities to Recharge","R2101"
"Wolverhampton City Council","http://opendatacommunities.org/id/metropolitan-district-council/wolverhampton","708251","Total Gas & Power Limited","176669058","62.50","Gas","190507641","19/09/2018","Schools","Stowheath Primary School","R2101"
"Wolverhampton City Council","http://opendatacommunities.org/id/metropolitan-district-council/wolverhampton","708251","Total Gas & Power Limited","175128640","175.11","Electricity","190502258","05/09/2018","Corporate Asset Management","Central Utilities to Recharge","R2100"
"Wolverhampton City Council","http://opendatacommunities.org/id/metropolitan-district-council/wolverhampton","708251","Total Gas & Power Limited","176498195","41.10","Electricity","190508677","21/09/2018","Corporate Asset Management","Central Utilities to Recharge","R2100"
"Wolverhampton City Council","http://opendatacommunities.org/id/metropolitan-district-council/wolverhampton","708251","Total Gas & Power Limited","176277535","996.31","Electricity","190508748","21/09/2018","Schools","Bushbury Hill Primary School","R2100"
"Wolverhampton City Council","http://opendatacommunities.org/id/metropolitan-district-council/wolverhampton","708251","Total Gas & Power Limited","176452930","2,975.16","Electricity","190508514","21/09/2018","Corporate Asset Management","Central Utilities to Recharge","R2100"
"Wolverhampton City Council","http://opendatacommunities.org/id/metropolitan-district-council/wolverhampton","708251","Total Gas & Power Limited","176452941","3,930.11","Electricity","190508515","21/09/2018","Corporate Asset Management","Central Utilities to Recharge","R2100"
"Wolverhampton City Council","http://opendatacommunities.org/id/metropolitan-district-council/wolverhampton","708251","Total Gas & Power Limited","176513364","45.67","Electricity","190508622","21/09/2018","Schools","Christ Church (Tettenhall Wood) Infant School","R2100"
"Wolverhampton City Council","http://opendatacommunities.org/id/metropolitan-district-council/wolverhampton","708251","Total Gas & Power Limited","176830692","465.82","Gas","190507734","19/09/2018","Corporate Asset Management","Central Utilities to Recharge","R2101"
"Wolverhampton City Council","http://opendatacommunities.org/id/metropolitan-district-council/wolverhampton","708251","Total Gas & Power Limited","175239620","38.83","Electricity","190502048","05/09/2018","Corporate Asset Management","Central Utilities to Recharge","R2100"
"Wolverhampton City Council","http://opendatacommunities.org/id/metropolitan-district-council/wolverhampton","708251","Total Gas & Power Limited","176668860","146.66","Gas","190507660","19/09/2018","Corporate Asset Management","Central Utilities to Recharge","R2101"
"Wolverhampton City Council","http://opendatacommunities.org/id/metropolitan-district-council/wolverhampton","708251","Total Gas & Power Limited","176669180","477.67","Gas","190507630","19/09/2018","Schools","Fallings Park Primary School","R2101"
"Wolverhampton City Council","http://opendatacommunities.org/id/metropolitan-district-council/wolverhampton","708251","Total Gas & Power Limited","175146053","182.86","Electricity","190502120","05/09/2018","Corporate Asset Management","Central Utilities to Recharge","R2100"
"Wolverhampton City Council","http://opendatacommunities.org/id/metropolitan-district-council/wolverhampton","708251","Total Gas & Power Limited","176668475","47.84","Gas","190507706","19/09/2018","Schools","Christ Church (Tettenhall Wood) Infant School","R2101"
"Wolverhampton City Council","http://opendatacommunities.org/id/metropolitan-district-council/wolverhampton","708251","Total Gas & Power Limited","176669036","47.84","Gas","190507643","19/09/2018","Schools","Christ Church (Church of England) Junior School","R2101"
"Wolverhampton City Council","http://opendatacommunities.org/id/metropolitan-district-council/wolverhampton","708251","Total Gas & Power Limited","176668585","47.84","Gas","190507695","19/09/2018","Corporate Asset Management","Central Utilities to Recharge","R2101"
"Wolverhampton City Council","http://opendatacommunities.org/id/metropolitan-district-council/wolverhampton","708251","Total Gas & Power Limited","176420062","12.84","Electricity","190508651","21/09/2018","Corporate Asset Management","Central Utilities to Recharge","R2100"
"Wolverhampton City Council","http://opendatacommunities.org/id/metropolitan-district-council/wolverhampton","708251","Total Gas & Power Limited","176420051","58.38","Electricity","190508650","21/09/2018","Housing Revenue Account","Hostels / Outreach","R2100"
"Wolverhampton City Council","http://opendatacommunities.org/id/metropolitan-district-council/wolverhampton","708251","Total Gas & Power Limited","176420161","109.40","Electricity","190508654","21/09/2018","Corporate Asset Management","Central Utilities to Recharge","R2100"
"Wolverhampton City Council","http://opendatacommunities.org/id/metropolitan-district-council/wolverhampton","708251","Total Gas & Power Limited","176420910","187.70","Electricity","190508667","21/09/2018","Schools","Bilston Nursery","R2100"
"Wolverhampton City Council","http://opendatacommunities.org/id/metropolitan-district-council/wolverhampton","708251","Total Gas & Power Limited","176421020","154.82","Electricity","190508668","21/09/2018","Schools","Whitgreave Infant School","R2100"
"Wolverhampton City Council","http://opendatacommunities.org/id/metropolitan-district-council/wolverhampton","708251","Total Gas & Power Limited","176277018","850.93","Electricity","190508720","21/09/2018","Schools","St Luke�s Church of England Aided Primary School","R2100"
"Wolverhampton City Council","http://opendatacommunities.org/id/metropolitan-district-council/wolverhampton","708251","Total Gas & Power Limited","176421130","14.07","Electricity","190508671","21/09/2018","Corporate Asset Management","Central Utilities to Recharge","R2100"
"Wolverhampton City Council","http://opendatacommunities.org/id/metropolitan-district-council/wolverhampton","708251","Total Gas & Power Limited","176420601","568.93","Electricity","190508663","21/09/2018","Corporate Asset Management","Central Utilities to Recharge","R2100"
"Wolverhampton City Council","http://opendatacommunities.org/id/metropolitan-district-council/wolverhampton","708251","Total Gas & Power Limited","176421085","338.97","Electricity","190508669","21/09/2018","Corporate Asset Management","Central Utilities to Recharge","R2100"
"Wolverhampton City Council","http://opendatacommunities.org/id/metropolitan-district-council/wolverhampton","708251","Total Gas & Power Limited","176276963","1,240.06","Electricity","190508715","21/09/2018","Schools","Penn Hall Special School","R2100"
"Wolverhampton City Council","http://opendatacommunities.org/id/metropolitan-district-council/wolverhampton","708251","Total Gas & Power Limited","175495204","7.86","Electricity","190508683","21/09/2018","Corporate Asset Management","Central Utilities to Recharge","R2100"
"Wolverhampton City Council","http://opendatacommunities.org/id/metropolitan-district-council/wolverhampton","708251","Total Gas & Power Limited","176277128","258.79","Electricity","190508730","21/09/2018","Corporate Asset Management","Central Utilities to Recharge","R2100"
"Wolverhampton City Council","http://opendatacommunities.org/id/metropolitan-district-council/wolverhampton","708251","Total Gas & Power Limited","176277470","361.67","Electricity","190508745","21/09/2018","Corporate Asset Management","Central Utilities to Recharge","R2100"
"Wolverhampton City Council","http://opendatacommunities.org/id/metropolitan-district-council/wolverhampton","708251","Total Gas & Power Limited","176498570","21.08","Electricity","190508684","21/09/2018","Corporate Asset Management","Central Utilities to Recharge","R2100"
"Wolverhampton City Council","http://opendatacommunities.org/id/metropolitan-district-council/wolverhampton","708251","Total Gas & Power Limited","176277458","800.12","Electricity","190508743","21/09/2018","Estates and Valuations","I10 Rental Income","R2100"
"Wolverhampton City Council","http://opendatacommunities.org/id/metropolitan-district-council/wolverhampton","708251","Total Gas & Power Limited","176498921","149.11","Electricity","190508689","21/09/2018","Corporate Asset Management","Central Utilities to Recharge","R2100"
"Wolverhampton City Council","http://opendatacommunities.org/id/metropolitan-district-council/wolverhampton","708251","Total Gas & Power Limited","176498900","300.03","Electricity","190508688","21/09/2018","Schools","St Michael�s Church of England Primary School","R2100"
"Wolverhampton City Council","http://opendatacommunities.org/id/metropolitan-district-council/wolverhampton","708251","Total Gas & Power Limited","176394014","672.55","Electricity","190508752","21/09/2018","Schools","Oak Meadow Primary School","R2100"
"Wolverhampton City Council","http://opendatacommunities.org/id/metropolitan-district-council/wolverhampton","708251","Total Gas & Power Limited","176276908","695.91","Electricity","190508709","21/09/2018","Schools","Trinity Church of England Primary School","R2100"
"Wolverhampton City Council","http://opendatacommunities.org/id/metropolitan-district-council/wolverhampton","708251","Total Gas & Power Limited","172099053C","-3.68","Electricity","190508755","21/09/2018","Corporate Asset Management","Central Utilities to Recharge","R2100"
"Wolverhampton City Council","http://opendatacommunities.org/id/metropolitan-district-council/wolverhampton","708251","Total Gas & Power Limited","173458312C","-19.39","Electricity","190508759","21/09/2018","Corporate Asset Management","Central Utilities to Recharge","R2100"
"Wolverhampton City Council","http://opendatacommunities.org/id/metropolitan-district-council/wolverhampton","708251","Total Gas & Power Limited","176499240","945.45","Electricity","190508692","21/09/2018","Corporate Asset Management","Central Utilities to Recharge","R2100"
"Wolverhampton City Council","http://opendatacommunities.org/id/metropolitan-district-council/wolverhampton","708251","Total Gas & Power Limited","176394069","304.54","Electricity","190508766","21/09/2018","Corporate Asset Management","Central Utilities to Recharge","R2100"
"Wolverhampton City Council","http://opendatacommunities.org/id/metropolitan-district-council/wolverhampton","708251","Total Gas & Power Limited","175539259","229.40","Electricity","190508770","21/09/2018","Corporate Asset Management","Central Utilities to Recharge","R2100"
"Wolverhampton City Council","http://opendatacommunities.org/id/metropolitan-district-council/wolverhampton","708251","Total Gas & Power Limited","176394091","9.97","Electricity","190508768","21/09/2018","Corporate Asset Management","Central Utilities to Recharge","R2100"
"Wolverhampton City Council","http://opendatacommunities.org/id/metropolitan-district-council/wolverhampton","708251","Total Gas & Power Limited","175529040","76.06","Electricity","190508769","21/09/2018","Corporate Asset Management","Central Utilities to Recharge","R2100"
"Wolverhampton City Council","http://opendatacommunities.org/id/metropolitan-district-council/wolverhampton","708251","Total Gas & Power Limited","176276930","18.82","Electricity","190508712","21/09/2018","Corporate Asset Management","Central Utilities to Recharge","R2100"
"Wolverhampton City Council","http://opendatacommunities.org/id/metropolitan-district-council/wolverhampton","708251","Total Gas & Power Limited","176394179","104.98","Electricity","190508780","21/09/2018","Corporate Asset Management","Central Utilities to Recharge","R2100"
"Wolverhampton City Council","http://opendatacommunities.org/id/metropolitan-district-council/wolverhampton","708251","Total Gas & Power Limited","176394124","75.08","Electricity","190508774","21/09/2018","Corporate Asset Management","Central Utilities to Recharge","R2100"
"Wolverhampton City Council","http://opendatacommunities.org/id/metropolitan-district-council/wolverhampton","708251","Total Gas & Power Limited","175823807","60.23","Electricity","190508783","21/09/2018","Corporate Asset Management","Central Utilities to Recharge","R2100"
"Wolverhampton City Council","http://opendatacommunities.org/id/metropolitan-district-council/wolverhampton","708251","Total Gas & Power Limited","176394180","179.07","Electricity","190508784","21/09/2018","Corporate Asset Management","Central Utilities to Recharge","R2100"
"Wolverhampton City Council","http://opendatacommunities.org/id/metropolitan-district-council/wolverhampton","708251","Total Gas & Power Limited","175544330","1,422.36","Electricity","190508504","21/09/2018","Corporate Asset Management","Central Utilities to Recharge","R2100"
"Wolverhampton City Council","http://opendatacommunities.org/id/metropolitan-district-council/wolverhampton","708251","Total Gas & Power Limited","173328260C","-1,384.93","Electricity","190508502","21/09/2018","Corporate Asset Management","Central Utilities to Recharge","R2100"
"Wolverhampton City Council","http://opendatacommunities.org/id/metropolitan-district-council/wolverhampton","708251","Total Gas & Power Limited","176452776","7,411.69","Electricity","190508492","21/09/2018","Corporate Asset Management","Central Utilities to Recharge","R2100"
"Wolverhampton City Council","http://opendatacommunities.org/id/metropolitan-district-council/wolverhampton","708251","Total Gas & Power Limited","176452842","876.22","Electricity","190508498","21/09/2018","Corporate Asset Management","Central Utilities to Recharge","R2100"
"Wolverhampton City Council","http://opendatacommunities.org/id/metropolitan-district-council/wolverhampton","708251","Total Gas & Power Limited","175532945","1,376.66","Electricity","190508503","21/09/2018","Corporate Asset Management","Central Utilities to Recharge","R2100"
"Wolverhampton City Council","http://opendatacommunities.org/id/metropolitan-district-council/wolverhampton","708251","Total Gas & Power Limited","176452974","251.95","Electricity","190508517","21/09/2018","Corporate Asset Management","Central Utilities to Recharge","R2100"
"Wolverhampton City Council","http://opendatacommunities.org/id/metropolitan-district-council/wolverhampton","708251","Total Gas & Power Limited","176452920","327.63","Electricity","190508513","21/09/2018","Facilities Management","Management of Vacant Properties","R2100"
"Wolverhampton City Council","http://opendatacommunities.org/id/metropolitan-district-council/wolverhampton","708251","Total Gas & Power Limited","176453084","73.39","Electricity","190508523","21/09/2018","Corporate Asset Management","Central Utilities to Recharge","R2100"
"Wolverhampton City Council","http://opendatacommunities.org/id/metropolitan-district-council/wolverhampton","708251","Total Gas & Power Limited","176453557","94.36","Electricity","190508533","21/09/2018","Corporate Asset Management","Central Utilities to Recharge","R2100"
"Wolverhampton City Council","http://opendatacommunities.org/id/metropolitan-district-council/wolverhampton","708251","Total Gas & Power Limited","176453788","310.34","Electricity","190508539","21/09/2018","Corporate Asset Management","Central Utilities to Recharge","R2100"
"Wolverhampton City Council","http://opendatacommunities.org/id/metropolitan-district-council/wolverhampton","708251","Total Gas & Power Limited","176503552","487.73","Electricity","190508570","21/09/2018","Corporate Asset Management","Central Utilities to Recharge","R2100"
"Wolverhampton City Council","http://opendatacommunities.org/id/metropolitan-district-council/wolverhampton","708251","Total Gas & Power Limited","176453403","25.74","Electricity","190508528","21/09/2018","Schools","Merridale Primary School","R2100"
"Wolverhampton City Council","http://opendatacommunities.org/id/metropolitan-district-council/wolverhampton","708251","Total Gas & Power Limited","176503959","175.50","Electricity","190508578","21/09/2018","Corporate Asset Management","Central Utilities to Recharge","R2100"
"Wolverhampton City Council","http://opendatacommunities.org/id/metropolitan-district-council/wolverhampton","708251","Total Gas & Power Limited","176502243","79.34","Electricity","190508544","21/09/2018","Corporate Asset Management","Central Utilities to Recharge","R2100"
"Wolverhampton City Council","http://opendatacommunities.org/id/metropolitan-district-council/wolverhampton","708251","Total Gas & Power Limited","176503827","60.84","Electricity","190508576","21/09/2018","Corporate Asset Management","Central Utilities to Recharge","R2100"
"Wolverhampton City Council","http://opendatacommunities.org/id/metropolitan-district-council/wolverhampton","708251","Total Gas & Power Limited","176513750","14.07","Electricity","190508635","21/09/2018","Corporate Asset Management","Central Utilities to Recharge","R2100"
"Wolverhampton City Council","http://opendatacommunities.org/id/metropolitan-district-council/wolverhampton","708251","Total Gas & Power Limited","176513672","146.54","Electricity","190508632","21/09/2018","Corporate Asset Management","Central Utilities to Recharge","R2100"
"Wolverhampton City Council","http://opendatacommunities.org/id/metropolitan-district-council/wolverhampton","708251","Total Gas & Power Limited","176503365","54.66","Electricity","190508566","21/09/2018","Schools","St Luke�s Church of England Aided Primary School","R2100"
"Wolverhampton City Council","http://opendatacommunities.org/id/metropolitan-district-council/wolverhampton","708251","Total Gas & Power Limited","176503772","727.23","Electricity","190508574","21/09/2018","Schools","St Paul�s Church of England (Aided) School","R2100"
"Wolverhampton City Council","http://opendatacommunities.org/id/metropolitan-district-council/wolverhampton","708251","Total Gas & Power Limited","176503728","267.64","Electricity","190508573","21/09/2018","Corporate Asset Management","Central Utilities to Recharge","R2100"
"Wolverhampton City Council","http://opendatacommunities.org/id/metropolitan-district-council/wolverhampton","708251","Total Gas & Power Limited","176503288","277.01","Electricity","190508564","21/09/2018","Corporate Asset Management","Central Utilities to Recharge","R2100"
"Wolverhampton City Council","http://opendatacommunities.org/id/metropolitan-district-council/wolverhampton","708251","Total Gas & Power Limited","176364666","272.83","Electricity","190508600","21/09/2018","Corporate Asset Management","Central Utilities to Recharge","R2100"
"Wolverhampton City Council","http://opendatacommunities.org/id/metropolitan-district-council/wolverhampton","708251","Total Gas & Power Limited","176364325","512.00","Electricity","190508595","21/09/2018","Corporate Asset Management","Central Utilities to Recharge","R2100"
"Wolverhampton City Council","http://opendatacommunities.org/id/metropolitan-district-council/wolverhampton","708251","Total Gas & Power Limited","176364424","119.79","Electricity","190508596","21/09/2018","Schools","Ashmore Park Nursery","R2100"
"Wolverhampton City Council","http://opendatacommunities.org/id/metropolitan-district-council/wolverhampton","708251","Total Gas & Power Limited","176364512","27.08","Electricity","190508597","21/09/2018","Corporate Asset Management","Central Utilities to Recharge","R2100"
"Wolverhampton City Council","http://opendatacommunities.org/id/metropolitan-district-council/wolverhampton","708251","Total Gas & Power Limited","176364919","118.49","Electricity","190508606","21/09/2018","Corporate Asset Management","Central Utilities to Recharge","R2100"
"Wolverhampton City Council","http://opendatacommunities.org/id/metropolitan-district-council/wolverhampton","708251","Total Gas & Power Limited","176512913","178.11","Electricity","190508613","21/09/2018","Corporate Asset Management","Central Utilities to Recharge","R2100"
"Wolverhampton City Council","http://opendatacommunities.org/id/metropolitan-district-council/wolverhampton","708251","Total Gas & Power Limited","176512847","17.14","Electricity","190508610","21/09/2018","Corporate Asset Management","Central Utilities to Recharge","R2100"
"Wolverhampton City Council","http://opendatacommunities.org/id/metropolitan-district-council/wolverhampton","708251","Total Gas & Power Limited","176364853","247.73","Electricity","190508605","21/09/2018","Corporate Asset Management","Central Utilities to Recharge","R2100"
"Wolverhampton City Council","http://opendatacommunities.org/id/metropolitan-district-council/wolverhampton","708251","Total Gas & Power Limited","176668772","5,008.94","Gas","190507670","19/09/2018","Corporate Asset Management","Central Utilities to Recharge","R2101"
"Wolverhampton City Council","http://opendatacommunities.org/id/metropolitan-district-council/wolverhampton","708251","Total Gas & Power Limited","175145680","55.42","Electricity","190502115","05/09/2018","Corporate Asset Management","Central Utilities to Recharge","R2100"
"Wolverhampton City Council","http://opendatacommunities.org/id/metropolitan-district-council/wolverhampton","708251","Total Gas & Power Limited","175178811","732.40","Electricity","190502201","05/09/2018","Schools","Loxdale Primary School","R2100"
"Wolverhampton City Council","http://opendatacommunities.org/id/metropolitan-district-council/wolverhampton","708251","Total Gas & Power Limited","175178888","40.40","Electricity","190502204","05/09/2018","Operation & Maintenance of Existing Network","Rechargeable Works to Capital - Contract Annual Costs","R2100"
"Wolverhampton City Council","http://opendatacommunities.org/id/metropolitan-district-council/wolverhampton","708251","Total Gas & Power Limited","175239377","273.71","Electricity","190502037","05/09/2018","Corporate Asset Management","Central Utilities to Recharge","R2100"
"Wolverhampton City Council","http://opendatacommunities.org/id/metropolitan-district-council/wolverhampton","708251","Total Gas & Power Limited","175182100","9.91","Electricity","190502127","05/09/2018","Corporate Asset Management","Central Utilities to Recharge","R2100"
"Wolverhampton City Council","http://opendatacommunities.org/id/metropolitan-district-council/wolverhampton","708251","Total Gas & Power Limited","175240147","1,059.68","Electricity","190502079","05/09/2018","Schools","Wilkinson Primary School","R2100"
"Wolverhampton City Council","http://opendatacommunities.org/id/metropolitan-district-council/wolverhampton","708251","Total Gas & Power Limited","175239971","18.85","Electricity","190502063","05/09/2018","Corporate Asset Management","Central Utilities to Recharge","R2100"
"Wolverhampton City Council","http://opendatacommunities.org/id/metropolitan-district-council/wolverhampton","708251","Total Gas & Power Limited","173768810","7.60","Electricity","190502106","05/09/2018","Corporate Asset Management","Central Utilities to Recharge","R2100"
"Wolverhampton City Council","http://opendatacommunities.org/id/metropolitan-district-council/wolverhampton","708251","Total Gas & Power Limited","175240048","1,121.24","Electricity","190502070","05/09/2018","Schools","Stowheath Primary School","R2100"
"Wolverhampton City Council","http://opendatacommunities.org/id/metropolitan-district-council/wolverhampton","708251","Total Gas & Power Limited","175181869","18.11","Electricity","190502123","05/09/2018","Corporate Asset Management","Central Utilities to Recharge","R2100"
"Wolverhampton City Council","http://opendatacommunities.org/id/metropolitan-district-council/wolverhampton","708251","Total Gas & Power Limited","175182640","279.23","Electricity","190502143","05/09/2018","Corporate Asset Management","Central Utilities to Recharge","R2100"
"Wolverhampton City Council","http://opendatacommunities.org/id/metropolitan-district-council/wolverhampton","708251","Total Gas & Power Limited","175183211","205.72","Electricity","190502152","05/09/2018","Corporate Asset Management","Central Utilities to Recharge","R2100"
"Wolverhampton City Council","http://opendatacommunities.org/id/metropolitan-district-council/wolverhampton","708251","Total Gas & Power Limited","175183266","14.25","Electricity","190502155","05/09/2018","Corporate Asset Management","Central Utilities to Recharge","R2100"
"Wolverhampton City Council","http://opendatacommunities.org/id/metropolitan-district-council/wolverhampton","708251","Total Gas & Power Limited","175177513","26.79","Electricity","190502172","05/09/2018","Corporate Asset Management","Central Utilities to Recharge","R2100"
"Wolverhampton City Council","http://opendatacommunities.org/id/metropolitan-district-council/wolverhampton","708251","Total Gas & Power Limited","175075994","22.04","Electricity","190502238","05/09/2018","Corporate Asset Management","Central Utilities to Recharge","R2100"
"Wolverhampton City Council","http://opendatacommunities.org/id/metropolitan-district-council/wolverhampton","708251","Total Gas & Power Limited","175075191","301.33","Electricity","190502219","05/09/2018","Corporate Asset Management","Central Utilities to Recharge","R2100"
"Wolverhampton City Council","http://opendatacommunities.org/id/metropolitan-district-council/wolverhampton","708251","Total Gas & Power Limited","175129410","1,918.66","Electricity","190502287","05/09/2018","Corporate Asset Management","Central Utilities to Recharge","R2100"
"Wolverhampton City Council","http://opendatacommunities.org/id/metropolitan-district-council/wolverhampton","708251","Total Gas & Power Limited","175129399","1,415.66","Electricity","190502285","05/09/2018","Corporate Asset Management","Central Utilities to Recharge","R2100"
"Wolverhampton City Council","http://opendatacommunities.org/id/metropolitan-district-council/wolverhampton","708251","Total Gas & Power Limited","175128970","238.83","Electricity","190502267","05/09/2018","Corporate Asset Management","Central Utilities to Recharge","R2100"
"Wolverhampton City Council","http://opendatacommunities.org/id/metropolitan-district-council/wolverhampton","708251","Total Gas & Power Limited","175128695","244.61","Electricity","190502260","05/09/2018","Corporate Asset Management","Central Utilities to Recharge","R2100"
"Wolverhampton City Council","http://opendatacommunities.org/id/metropolitan-district-council/wolverhampton","708251","Total Gas & Power Limited","175239366","311.33","Electricity","190502036","05/09/2018","Corporate Asset Management","Central Utilities to Recharge","R2100"
"Wolverhampton City Council","http://opendatacommunities.org/id/metropolitan-district-council/wolverhampton","708251","Total Gas & Power Limited","175182155","37.77","Electricity","190502128","05/09/2018","Schools","Penn Hall Special School","R2100"
"Wolverhampton City Council","http://opendatacommunities.org/id/metropolitan-district-council/wolverhampton","708251","Total Gas & Power Limited","175239905","1,762.07","Electricity","190502060","05/09/2018","Corporate Asset Management","Central Utilities to Recharge","R2100"
"Wolverhampton City Council","http://opendatacommunities.org/id/metropolitan-district-council/wolverhampton","708251","Total Gas & Power Limited","175240015","471.54","Electricity","190502067","05/09/2018","Corporate Asset Management","Central Utilities to Recharge","R2100"
"Wolverhampton City Council","http://opendatacommunities.org/id/metropolitan-district-council/wolverhampton","708251","Total Gas & Power Limited","175144480","440.54","Electricity","190502094","05/09/2018","Corporate Asset Management","Central Utilities to Recharge","R2100"
"Wolverhampton City Council","http://opendatacommunities.org/id/metropolitan-district-council/wolverhampton","708251","Total Gas & Power Limited","175182342","100.48","Electricity","190502133","05/09/2018","Corporate Asset Management","Central Utilities to Recharge","R2100"
"Wolverhampton City Council","http://opendatacommunities.org/id/metropolitan-district-council/wolverhampton","708251","Total Gas & Power Limited","175183640","83.32","Electricity","190502168","05/09/2018","Schools","Christ Church (Tettenhall Wood) Infant School","R2100"
"Wolverhampton City Council","http://opendatacommunities.org/id/metropolitan-district-council/wolverhampton","708251","Total Gas & Power Limited","175075653","63.29","Electricity","190502229","05/09/2018","Facilities Management","Management of Vacant Properties","R2100"
"Wolverhampton City Council","http://opendatacommunities.org/id/metropolitan-district-council/wolverhampton","708251","Total Gas & Power Limited","175129256","3,334.87","Electricity","190502273","05/09/2018","Corporate Asset Management","Central Utilities to Recharge","R2100"
"Wolverhampton City Council","http://opendatacommunities.org/id/metropolitan-district-council/wolverhampton","708251","Total Gas & Power Limited","175076050","31.70","Electricity","190502239","05/09/2018","Corporate Asset Management","Central Utilities to Recharge","R2100"
"Wolverhampton City Council","http://opendatacommunities.org/id/metropolitan-district-council/wolverhampton","708251","Total Gas & Power Limited","175075081","107.75","Electricity","190502215","05/09/2018","Corporate Asset Management","Central Utilities to Recharge","R2100"
"Wolverhampton City Council","http://opendatacommunities.org/id/metropolitan-district-council/wolverhampton","708251","Total Gas & Power Limited","175129311","2,985.02","Electricity","190502277","05/09/2018","Corporate Asset Management","Central Utilities to Recharge","R2100"
"Wolverhampton City Council","http://opendatacommunities.org/id/metropolitan-district-council/wolverhampton","708251","Total Gas & Power Limited","175129322","2,722.13","Electricity","190502278","05/09/2018","Corporate Asset Management","Central Utilities to Recharge","R2100"
"Wolverhampton City Council","http://opendatacommunities.org/id/metropolitan-district-council/wolverhampton","708251","Total Gas & Power Limited","175128410","20.62","Electricity","190502252","05/09/2018","Corporate Asset Management","Central Utilities to Recharge","R2100"
"Wolverhampton City Council","http://opendatacommunities.org/id/metropolitan-district-council/wolverhampton","708251","Total Gas & Power Limited","175128464","314.70","Electricity","190502253","05/09/2018","Corporate Asset Management","Central Utilities to Recharge","R2100"
"Wolverhampton City Council","http://opendatacommunities.org/id/metropolitan-district-council/wolverhampton","708251","Total Gas & Power Limited","175076709","20.78","Electricity","190502250","05/09/2018","Corporate Asset Management","Central Utilities to Recharge","R2100"
"Wolverhampton City Council","http://opendatacommunities.org/id/metropolitan-district-council/wolverhampton","708251","Total Gas & Power Limited","175076654","75.93","Electricity","190502248","05/09/2018","Corporate Asset Management","Central Utilities to Recharge","R2100"
"Wolverhampton City Council","http://opendatacommunities.org/id/metropolitan-district-council/wolverhampton","708251","Total Gas & Power Limited","175128684","88.49","Electricity","190502259","05/09/2018","Corporate Asset Management","Central Utilities to Recharge","R2100"
"Wolverhampton City Council","http://opendatacommunities.org/id/metropolitan-district-council/wolverhampton","708251","Total Gas & Power Limited","175239290","84.95","Electricity","190502031","05/09/2018","Corporate Asset Management","Central Utilities to Recharge","R2100"
"Wolverhampton City Council","http://opendatacommunities.org/id/metropolitan-district-council/wolverhampton","708251","Total Gas & Power Limited","156168501","389.31","Electricity","190503895","12/09/2018","Corporate Asset Management","Central Utilities to Recharge","R2100"
"Wolverhampton City Council","http://opendatacommunities.org/id/metropolitan-district-council/wolverhampton","708251","Total Gas & Power Limited","167720459","1,392.02","Electricity","190503892","12/09/2018","Corporate Asset Management","Central Utilities to Recharge","R2100"
"Wolverhampton City Council","http://opendatacommunities.org/id/metropolitan-district-council/wolverhampton","708251","Total Gas & Power Limited","144078698","57.25","Electricity","190503899","12/09/2018","Corporate Asset Management","Central Utilities to Recharge","R2100"
"Wolverhampton City Council","http://opendatacommunities.org/id/metropolitan-district-council/wolverhampton","708251","Total Gas & Power Limited","169557679","814.70","Electricity","190503897","12/09/2018","Schools","West Park Primary School","R2100"
"Wolverhampton City Council","http://opendatacommunities.org/id/metropolitan-district-council/wolverhampton","708251","Total Gas & Power Limited","166233127","254.28","Electricity","190503898","12/09/2018","Corporate Asset Management","Central Utilities to Recharge","R2100"
"Wolverhampton City Council","http://opendatacommunities.org/id/metropolitan-district-council/wolverhampton","708251","Total Gas & Power Limited","168008440","1,030.35","Electricity","190503914","12/09/2018","Corporate Asset Management","Central Utilities to Recharge","R2100"
"Wolverhampton City Council","http://opendatacommunities.org/id/metropolitan-district-council/wolverhampton","708251","Total Gas & Power Limited","169660914","117.38","Electricity","190503913","12/09/2018","Corporate Asset Management","Central Utilities to Recharge","R2100"
"Wolverhampton City Council","http://opendatacommunities.org/id/metropolitan-district-council/wolverhampton","708251","Total Gas & Power Limited","169561331","588.31","Electricity","190503901","12/09/2018","Schools","Wood End Primary School","R2100"
"Wolverhampton City Council","http://opendatacommunities.org/id/metropolitan-district-council/wolverhampton","708251","Total Gas & Power Limited","168659430","404.39","Electricity","190503922","12/09/2018","Corporate Asset Management","Central Utilities to Recharge","R2100"
"Wolverhampton City Council","http://opendatacommunities.org/id/metropolitan-district-council/wolverhampton","708251","Total Gas & Power Limited","175129179","71.95","Electricity","190502269","05/09/2018","Corporate Asset Management","Central Utilities to Recharge","R2100"
"Wolverhampton City Council","http://opendatacommunities.org/id/metropolitan-district-council/wolverhampton","708251","Total Gas & Power Limited","176420425","31.66","Electricity","190508660","21/09/2018","Schools","Bilston Church of England Primary School","R2100"
"Wolverhampton City Council","http://opendatacommunities.org/id/metropolitan-district-council/wolverhampton","708251","Total Gas & Power Limited","176277271","35.39","Electricity","190508735","21/09/2018","Corporate Asset Management","Central Utilities to Recharge","R2100"
"Wolverhampton City Council","http://opendatacommunities.org/id/metropolitan-district-council/wolverhampton","708251","Total Gas & Power Limited","176277580","34.28","Electricity","190508749","21/09/2018","Corporate Asset Management","Central Utilities to Recharge","R2100"
"Wolverhampton City Council","http://opendatacommunities.org/id/metropolitan-district-council/wolverhampton","708251","Total Gas & Power Limited","175529029","19.53","Electricity","190508764","21/09/2018","Corporate Asset Management","Central Utilities to Recharge","R2100"
"Wolverhampton City Council","http://opendatacommunities.org/id/metropolitan-district-council/wolverhampton","708251","Total Gas & Power Limited","175239399","20.36","Electricity","190508762","21/09/2018","Corporate Asset Management","Central Utilities to Recharge","R2100"
"Wolverhampton City Council","http://opendatacommunities.org/id/metropolitan-district-council/wolverhampton","708251","Total Gas & Power Limited","176452732","2,332.00","Electricity","190508490","21/09/2018","Corporate Asset Management","Central Utilities to Recharge","R2100"
"Wolverhampton City Council","http://opendatacommunities.org/id/metropolitan-district-council/wolverhampton","708251","Total Gas & Power Limited","176502860","33.16","Electricity","190508553","21/09/2018","Corporate Asset Management","Central Utilities to Recharge","R2100"
"Wolverhampton City Council","http://opendatacommunities.org/id/metropolitan-district-council/wolverhampton","708251","Total Gas & Power Limited","176502617","33.90","Electricity","190508549","21/09/2018","Corporate Asset Management","Central Utilities to Recharge","R2100"
"Wolverhampton City Council","http://opendatacommunities.org/id/metropolitan-district-council/wolverhampton","708251","Total Gas & Power Limited","176453051/18","128,702.19","Electricity","190505081","14/09/2018","Street Lighting","Street Lighting Energy","R2100"
"Wolverhampton City Council","http://opendatacommunities.org/id/metropolitan-district-council/wolverhampton","708251","Total Gas & Power Limited","176668420","40.36","Gas","190507711","19/09/2018","Corporate Asset Management","Central Utilities to Recharge","R2101"
"Wolverhampton City Council","http://opendatacommunities.org/id/metropolitan-district-council/wolverhampton","708251","Total Gas & Power Limited","176668464","48.86","Gas","190507707","19/09/2018","Corporate Asset Management","Central Utilities to Recharge","R2101"
"Wolverhampton City Council","http://opendatacommunities.org/id/metropolitan-district-council/wolverhampton","708251","Total Gas & Power Limited","176669168","48.38","Gas","190507632","19/09/2018","Schools","St Michael�s Church of England Primary School","R2101"
"Wolverhampton City Council","http://opendatacommunities.org/id/metropolitan-district-council/wolverhampton","708251","Total Gas & Power Limited","176669290","47.84","Gas","190507619","19/09/2018","Schools","Springdale Primary School","R2101"
"Wolverhampton City Council","http://opendatacommunities.org/id/metropolitan-district-council/wolverhampton","708251","Total Gas & Power Limited","176669124","155.76","Gas","190507635","19/09/2018","Schools","Wodensfield Primary School","R2101"
"Wolverhampton City Council","http://opendatacommunities.org/id/metropolitan-district-council/wolverhampton","708251","Total Gas & Power Limited","176669432","144.69","Gas","190507601","19/09/2018","Corporate Asset Management","Central Utilities to Recharge","R2101"
"Wolverhampton City Council","http://opendatacommunities.org/id/metropolitan-district-council/wolverhampton","708251","Total Gas & Power Limited","176668904","43.77","Gas","190507656","19/09/2018","Corporate Asset Management","Central Utilities to Recharge","R2101"
"Wolverhampton City Council","http://opendatacommunities.org/id/metropolitan-district-council/wolverhampton","708251","Total Gas & Power Limited","175239553","991.91","Electricity","190502044","05/09/2018","Schools","Bushbury Hill Primary School","R2100"
"Wolverhampton City Council","http://opendatacommunities.org/id/metropolitan-district-council/wolverhampton","708251","Total Gas & Power Limited","175239630","868.69","Electricity","190502049","05/09/2018","Estates and Valuations","I10 Rental Income","R2100"
"Wolverhampton City Council","http://opendatacommunities.org/id/metropolitan-district-council/wolverhampton","708251","Total Gas & Power Limited","175145624","-455.00","Electricity","190502114","05/09/2018","Operation & Maintenance of Existing Network","Rechargeable Works to Capital - Contract Annual Costs","R2100"
"Wolverhampton City Council","http://opendatacommunities.org/id/metropolitan-district-council/wolverhampton","708251","Total Gas & Power Limited","175181990","544.19","Electricity","190502126","05/09/2018","Corporate Asset Management","Central Utilities to Recharge","R2100"
"Wolverhampton City Council","http://opendatacommunities.org/id/metropolitan-district-council/wolverhampton","708251","Total Gas & Power Limited","175183002","536.24","Electricity","190502149","05/09/2018","Schools","Lanesfield Primary School","R2100"
"Wolverhampton City Council","http://opendatacommunities.org/id/metropolitan-district-council/wolverhampton","708251","Total Gas & Power Limited","175183520","517.57","Electricity","190502163","05/09/2018","Corporate Asset Management","Central Utilities to Recharge","R2100"
"Wolverhampton City Council","http://opendatacommunities.org/id/metropolitan-district-council/wolverhampton","708251","Total Gas & Power Limited","175177623","122.23","Electricity","190502177","05/09/2018","Corporate Asset Management","Central Utilities to Recharge","R2100"
"Wolverhampton City Council","http://opendatacommunities.org/id/metropolitan-district-council/wolverhampton","708251","Total Gas & Power Limited","175075147","728.58","Electricity","190502218","05/09/2018","Schools","St Paul�s Church of England (Aided) School","R2100"
"Wolverhampton City Council","http://opendatacommunities.org/id/metropolitan-district-council/wolverhampton","708251","Total Gas & Power Limited","175129400","917.06","Electricity","190502286","05/09/2018","Corporate Asset Management","Central Utilities to Recharge","R2100"
"Wolverhampton City Council","http://opendatacommunities.org/id/metropolitan-district-council/wolverhampton","708251","Total Gas & Power Limited","175128475","574.22","Electricity","190502254","05/09/2018","Corporate Asset Management","Central Utilities to Recharge","R2100"
"Wolverhampton City Council","http://opendatacommunities.org/id/metropolitan-district-council/wolverhampton","708251","Total Gas & Power Limited","175076687","614.73","Electricity","190502249","05/09/2018","Schools","Westacre Infant School","R2100"
"Wolverhampton City Council","http://opendatacommunities.org/id/metropolitan-district-council/wolverhampton","708251","Total Gas & Power Limited","175129421","506.99","Electricity","190502288","05/09/2018","Corporate Asset Management","Central Utilities to Recharge","R2100"
"Wolverhampton City Council","http://opendatacommunities.org/id/metropolitan-district-council/wolverhampton","708251","Total Gas & Power Limited","176668673","52.36","Gas","190507685","19/09/2018","Corporate Asset Management","Central Utilities to Recharge","R2101"
"Wolverhampton City Council","http://opendatacommunities.org/id/metropolitan-district-council/wolverhampton","708251","Total Gas & Power Limited","175239993","382.49","Electricity","190502065","05/09/2018","Corporate Asset Management","Central Utilities to Recharge","R2100"
"Wolverhampton City Council","http://opendatacommunities.org/id/metropolitan-district-council/wolverhampton","708251","Total Gas & Power Limited","175182309","101.74","Electricity","190502132","05/09/2018","Corporate Asset Management","Central Utilities to Recharge","R2100"
"Wolverhampton City Council","http://opendatacommunities.org/id/metropolitan-district-council/wolverhampton","708251","Total Gas & Power Limited","175177865","117.39","Electricity","190502184","05/09/2018","Corporate Asset Management","Central Utilities to Recharge","R2100"
"Wolverhampton City Council","http://opendatacommunities.org/id/metropolitan-district-council/wolverhampton","708251","Total Gas & Power Limited","175178822","65.56","Electricity","190502202","05/09/2018","Corporate Asset Management","Central Utilities to Recharge","R2100"
"Wolverhampton City Council","http://opendatacommunities.org/id/metropolitan-district-council/wolverhampton","708251","Total Gas & Power Limited","175128585","336.52","Electricity","190502256","05/09/2018","Corporate Asset Management","Central Utilities to Recharge","R2100"
"Wolverhampton City Council","http://opendatacommunities.org/id/metropolitan-district-council/wolverhampton","708251","Total Gas & Power Limited","175239267","57.86","Electricity","190502026","05/09/2018","Corporate Asset Management","Central Utilities to Recharge","R2100"
"Wolverhampton City Council","http://opendatacommunities.org/id/metropolitan-district-council/wolverhampton","708251","Total Gas & Power Limited","176830263","1,334.49","Gas","190507783","19/09/2018","Corporate Asset Management","Central Utilities to Recharge","R2101"
"Wolverhampton City Council","http://opendatacommunities.org/id/metropolitan-district-council/wolverhampton","708251","Total Gas & Power Limited","176420337","429.95","Electricity","190508658","21/09/2018","Schools","Woodthorne Primary School","R2100"
"Wolverhampton City Council","http://opendatacommunities.org/id/metropolitan-district-council/wolverhampton","708251","Total Gas & Power Limited","176277359","407.91","Electricity","190508738","21/09/2018","Schools","Bantock Primary School","R2100"
"Wolverhampton City Council","http://opendatacommunities.org/id/metropolitan-district-council/wolverhampton","708251","Total Gas & Power Limited","176394245","230.80","Electricity","190508785","21/09/2018","Corporate Asset Management","Central Utilities to Recharge","R2100"
"Wolverhampton City Council","http://opendatacommunities.org/id/metropolitan-district-council/wolverhampton","708251","Total Gas & Power Limited","176512858","227.76","Electricity","190508611","21/09/2018","Corporate Asset Management","Central Utilities to Recharge","R2100"
"Wolverhampton City Council","http://opendatacommunities.org/id/metropolitan-district-council/wolverhampton","708251","Total Gas & Power Limited","176830109","149.47","Gas","190507799","19/09/2018","Schools","Westacre Infant School","R2101"
"Wolverhampton City Council","http://opendatacommunities.org/id/metropolitan-district-council/wolverhampton","708251","Total Gas & Power Limited","174635390C","-62.60","Gas","190507738","19/09/2018","Corporate Asset Management","Central Utilities to Recharge","R2101"
"Wolverhampton City Council","http://opendatacommunities.org/id/metropolitan-district-council/wolverhampton","708251","Total Gas & Power Limited","176830197","883.97","Gas","190507790","19/09/2018","Schools","Stowheath Primary School","R2101"
"Wolverhampton City Council","http://opendatacommunities.org/id/metropolitan-district-council/wolverhampton","708251","Total Gas & Power Limited","174635587C","-47.84","Gas","190507591","19/09/2018","Facilities Management","Management of Vacant Properties","R2101"
"Wolverhampton City Council","http://opendatacommunities.org/id/metropolitan-district-council/wolverhampton","708251","Total Gas & Power Limited","176668662","47.02","Gas","190507686","19/09/2018","Corporate Asset Management","Central Utilities to Recharge","R2101"
"Wolverhampton City Council","http://opendatacommunities.org/id/metropolitan-district-council/wolverhampton","708251","Total Gas & Power Limited","176668827","44.49","Gas","190507664","19/09/2018","Corporate Asset Management","Central Utilities to Recharge","R2101"
"Wolverhampton City Council","http://opendatacommunities.org/id/metropolitan-district-council/wolverhampton","708251","Total Gas & Power Limited","176669047","47.84","Gas","190507642","19/09/2018","Schools","Merridale Primary School","R2101"
"Wolverhampton City Council","http://opendatacommunities.org/id/metropolitan-district-council/wolverhampton","708251","Total Gas & Power Limited","172997270C","-41.16","Gas","190507594","19/09/2018","Corporate Asset Management","Central Utilities to Recharge","R2101"
"Wolverhampton City Council","http://opendatacommunities.org/id/metropolitan-district-council/wolverhampton","708251","Total Gas & Power Limited","175182177","-179.19","Electricity","190502129","05/09/2018","Schools","Bilston Church of England Primary School","R2100"
"Wolverhampton City Council","http://opendatacommunities.org/id/metropolitan-district-council/wolverhampton","708251","Total Gas & Power Limited","175129245","5,014.65","Electricity","190502272","05/09/2018","Corporate Asset Management","Central Utilities to Recharge","R2100"
"Wolverhampton City Council","http://opendatacommunities.org/id/metropolitan-district-council/wolverhampton","708251","Total Gas & Power Limited","175182970","161.32","Electricity","190502147","05/09/2018","Schools","Bushbury Nursery","R2100"
"Wolverhampton City Council","http://opendatacommunities.org/id/metropolitan-district-council/wolverhampton","708251","Total Gas & Power Limited","176830736","66.66","Gas","190507730","19/09/2018","Corporate Asset Management","Central Utilities to Recharge","R2101"
"Wolverhampton City Council","http://opendatacommunities.org/id/metropolitan-district-council/wolverhampton","708251","Total Gas & Power Limited","176668959","87.29","Gas","190507651","19/09/2018","Corporate Asset Management","Central Utilities to Recharge","R2101"
"Wolverhampton City Council","http://opendatacommunities.org/id/metropolitan-district-council/wolverhampton","708251","Total Gas & Power Limited","175240103","814.52","Electricity","190502075","05/09/2018","Schools","Claregate Primary School","R2100"
"Wolverhampton City Council","http://opendatacommunities.org/id/metropolitan-district-council/wolverhampton","708251","Total Gas & Power Limited","175075411","188.13","Electricity","190502224","05/09/2018","Corporate Asset Management","Central Utilities to Recharge","R2100"
"Wolverhampton City Council","http://opendatacommunities.org/id/metropolitan-district-council/wolverhampton","708251","Total Gas & Power Limited","176830802","183.80","Gas","190507723","19/09/2018","Corporate Asset Management","Central Utilities to Recharge","R2101"
"Wolverhampton City Council","http://opendatacommunities.org/id/metropolitan-district-council/wolverhampton","708251","Total Gas & Power Limited","175179086","389.38","Electricity","190502207","05/09/2018","Schools","Christ Church (Church of England) Junior School","R2100"
"Wolverhampton City Council","http://opendatacommunities.org/id/metropolitan-district-council/wolverhampton","708251","Total Gas & Power Limited","175129510","3,525.61","Electricity","190502294","05/09/2018","Corporate Asset Management","Central Utilities to Recharge","R2100"
"Wolverhampton City Council","http://opendatacommunities.org/id/metropolitan-district-council/wolverhampton","708251","Total Gas & Power Limited","175182420","175.40","Electricity","190502135","05/09/2018","Corporate Asset Management","Central Utilities to Recharge","R2100"
"Wolverhampton City Council","http://opendatacommunities.org/id/metropolitan-district-council/wolverhampton","708251","Total Gas & Power Limited","176420359","50.03","Electricity","190508659","21/09/2018","Schools","St Anthony�s Catholic Primary School","R2100"
"Wolverhampton City Council","http://opendatacommunities.org/id/metropolitan-district-council/wolverhampton","708251","Total Gas & Power Limited","176277469","38.44","Electricity","190508744","21/09/2018","Corporate Asset Management","Central Utilities to Recharge","R2100"
"Wolverhampton City Council","http://opendatacommunities.org/id/metropolitan-district-council/wolverhampton","708251","Total Gas & Power Limited","176452787","3,641.01","Electricity","190508493","21/09/2018","Schools","Colton Hills Community School","R2100"
"Wolverhampton City Council","http://opendatacommunities.org/id/metropolitan-district-council/wolverhampton","708251","Total Gas & Power Limited","176452721","1,078.79","Electricity","190508489","21/09/2018","Corporate Asset Management","Central Utilities to Recharge","R2100"
"Wolverhampton City Council","http://opendatacommunities.org/id/metropolitan-district-council/wolverhampton","708251","Total Gas & Power Limited","176453007","4,863.79","Electricity","190508520","21/09/2018","Corporate Asset Management","Central Utilities to Recharge","R2100"
"Wolverhampton City Council","http://opendatacommunities.org/id/metropolitan-district-council/wolverhampton","708251","Total Gas & Power Limited","176668541","34.72","Gas","190507699","19/09/2018","Facilities Management","Management of Vacant Properties","R2101"
"Wolverhampton City Council","http://opendatacommunities.org/id/metropolitan-district-council/wolverhampton","708251","Total Gas & Power Limited","176830395","34.72","Gas","190507768","19/09/2018","Corporate Asset Management","Central Utilities to Recharge","R2101"
"Wolverhampton City Council","http://opendatacommunities.org/id/metropolitan-district-council/wolverhampton","708251","Total Gas & Power Limited","176830461","573.86","Gas","190507761","19/09/2018","Corporate Asset Management","Central Utilities to Recharge","R2101"
"Wolverhampton City Council","http://opendatacommunities.org/id/metropolitan-district-council/wolverhampton","708251","Total Gas & Power Limited","176830373","331.14","Gas","190507771","19/09/2018","Corporate Asset Management","Central Utilities to Recharge","R2101"
"Wolverhampton City Council","http://opendatacommunities.org/id/metropolitan-district-council/wolverhampton","708251","Total Gas & Power Limited","176830340","133.66","Gas","190507774","19/09/2018","Corporate Asset Management","Central Utilities to Recharge","R2101"
